Workbook

Sheet HOME
Y1: DHRM ADMIN
Z5: =AD6 -> LOCKED
AD6: LOCKED
K8: =IF('AGENCY PROFILE'!J29="","",'AGENCY PROFILE'!J29) -> 
P10: =IF(K8="","",CONCATENATE("Fiscal Year ",'DHRM ADMIN'!P15)) -> 
H16: STEP % COMPLETION | N16: STEP % COMPLETION | T16: STEP % COMPLETION
B20: GETTING STARTED | H20: AGENCY PROFILE | N20: EOP WORKFORCE DATA & AGENCY STRATEGY | T20: EOP SUMMARY
B24: It is highly recommended first time users start here. reviews important features, setup, and instructions for using this template to its full potential. | H24: includes the overall agency information required to utilize this template, including the name, agency number, secretariat, and logo. It also includes overall workforce information related to the employment opportunities plan. | N24: identifies specific data elements for agencies to interpret elements of their current workforce that relate to their EOP. guides agencies through a SWOT analysis exercise to interpret the current environment and utilize that, along with workforce data to create an action plan. | T24: compiles the information from the Agency Profile, EOP Workforce Data, and Agency Strategy tabs into a single, easy to read report. Some customization features can be adjusted on this tab. The report is formatted and can be exported as a PDF when finalized.
C33: Users can also import data from other tools on the Getting Started Tab.
C38: For questions or assistance using this template, please contact DHRM Workforce Planning at dhrm.wfp@dhrm.virginia.gov. | W38: Version 1.1

Sheet GETTING STARTED
C6: GETTING STARTED
C9: This tab reviews key features of this template and steps required in order to utilize all features. Taking the time to review each section will significantly enhance your understanding of the design and your ability to use the template efficiently. It is highly recommended first time users review this tab.
B13: Step 1: Review Overall Setup
B15: To use this template, it is recommended to follow the tabs in order from left to right, completing each step in order. For each step, instructions are included underneath. Some steps also provide sub-steps with additional instructions. Information required to be entered is noted by a yellow color and labeled either to the left or above the cell.
B31: Step 2: Review Important Features of This Template
B33: This template utilizes various features to assist with entering and interpreting workforce information. Below are descriptions of the template's key features and design.
D36: USE OF EXCEL MACROS This template utilizes a series of excel macros, which are custom actions to automate tasks. This template performs best when using Excel 2016 or later. NOTE: MACROS MUST BE ENABLED TO USE THEM. SEE BELOW TO LEARN HOW. | L36: EASY FILE NAVIGATION Each excel worksheet, or tab, houses related information which is compiled together into a single report. Links to each are frozen at the top of each tab. See the HOME tab for descriptions of each.
D43: COLOR GUIDED DATA ENTRY Colors are used to identify what data should be entered and where. Yellow indicates required information, Green indicates optional information, and Gray indicates information that is not required | L43: BUILT-IN HELP FEATURE This template has a built-in help feature. Click on the question mark in the blue circle for additional information, definitions, and steps to complete each section. NOTE: MACROS MUST BE ENABLED. THE TEMPLATE CANNOT BE EDITED WHILE OPEN.
D50: PROGRESS INDICATORS The home tab shows the overall progress for each stage of developing the Agency EOP. Each tab also has indicators for each specific step to show if they are complete or incomplete. | L50: ONLINE INSTRUCTIONS A full step by step guide and data definitions can be found on the DHRM Workforce Planning website.
F57: ADVANCED FEATURE: DATA IMPORT This template is part of a suite of integrated workforce planning and development tools. Using these tools allows for information to easily be imported from one tool to the next. Data cannot be imported unless using a specific template, provided by DHRM upon request. MACROS MUST BE ENABLED TO UTILIZE THIS FEATURE.
F66: ADVANCED FEATURE: EASILY REVIEW PRIOR INFORMATION After information is imported, select areas of the template allow for easy viewing of the prior year responses. Information can only be viewed if data from the respective template was imported. MACROS MUST BE ENABLED TO UTILIZE THIS FEATURE.
F75: TEMPLATE VERSIONS As we continue to enhance this template, integrate it with other elements of workforce planning and development, or as changes to any mandates or guidance occurs, new versions of this template may be released. The version number is located on the home tab in the bottom right corner. It is important to be using the most up to date version, which will be noted on the DHRM Workforce Planning Website. As new versions are released, the prior version data can be imported so that no progress is lost.
B87: (Optional) Step 3: Enable Macros to Utilize Full Functionality
B89: When first opening the file, or anytime the filename changes, you will see a "Security Warning" at the top (shown in the picture below) indicating Macros have been disabled. Click the "Enable Content" button to enable macros for the file.
B99: (Optional) Step 4: Import a Prior Version of the Employment Opportunities Plan Template
B101: If using the Employment Opportunities Plan Template for the first time or using the current version, this step can be skipped. For efficiency and integration, data from prior versions of the Employment Opportunities Plan can be imported. Imported data will automatically enter the information into the respective cells. Agencies are encouraged to still review the data for accuracy. Complete this step first to ensure no progress is lost. Importing data from other sources before a prior version of the Employment Opportunities Plan may result in data being overwritten.
B115: Last Uploaded Date and Time | K115: Upload Status
P116: =IF(K116="upload complete",3,IF(K116="pending",0,IF(K116="upload incomplete",-1,""))) -> 
B119: (Optional) Step 5: Import Data from Other Sources
B121: For efficiency and integration to other workforce planning and development tools, data from the Prior Year Employment Opportunity Plan can be imported. Imported data will automatically enter the information into the respective cells. Agencies are encouraged to still review the data for accuracy.
B133: Last Uploaded Date and Time | K133: Upload Status
P134: =IF(K134="upload complete",3,IF(K134="pending",0,IF(K134="upload incomplete",-1,""))) -> 

Sheet AGENCY PROFILE
R1: USER SETTINGS
C6: AGENCY PROFILE
C9: The Agency Profile of the Employment Opportunities Plan is a condensed version of the full Workforce Planning and Development Agency Profile. It includes the same general information, such as agency name, secretariat, number, and overall workforce data essential to the Employment Opportunities Plan.
B24: Step 1: Enter Agency Information | N24: =IF(AND(J29<>""),"Complete","Incomplete") -> Incomplete
B26: INSTRUCTIONS: Please select the agency name from the drop down menu in the yellow box. The secretary and agency number will be displayed. An optional logo can added by clicking the "insert logo" button and using the "Resize" button to size the picture to be in the box with a green outline.
I29: Agency Name:
I30: Secretariat: | J30: =IFERROR(IF(VLOOKUP($J$29,'CENTRAL DATA'!$A:$C,2,FALSE)=0,"--",VLOOKUP($J$29,'CENTRAL DATA'!$A:$C,2,FALSE)),"") -> 
O31: Agency Number: | P31: =IFERROR(IF(VLOOKUP($J$29,'CENTRAL DATA'!$A:$C,3,FALSE)=0,"--",VLOOKUP($J$29,'CENTRAL DATA'!$A:$C,3,FALSE)),"") -> 
J32: Optional Agency Logo:
J33: (Macros must be Enabled to Add Logo)
B40: Step 2: Specify if the tempalte is used for the FY Summary or to take a Workforce Snapshot | N40: =IF(AND(J45<>""),"Complete","Incomplete") -> Incomplete
B42: INSTRUCTIONS: Please select whether the agency is using this template to complete the mandated fiscal year employment opportunities plan or to take a workforce snapshot from the drop down menu in the yellow box. After, please enter the end of the fiscal year or the "As of" date.
K45: Is this for the Fiscal Year EOP or a Snapshop of the Workforce?
M46: =IF(L45="Fiscal Year EOP","Please enter the date of the end of the fiscal year (MM/DD/YYYY):",IF(L45="Snapshot","Please enter the snapshot as of date (MM/DD/YYYY):","Date:")) -> Date:
B50: Step 3: Enter Classified Employee Workforce Information | N50: =IF(COUNTBLANK(P59:P65)=0,"Complete","Incomplete") -> Incomplete
B52: INSTRUCTIONS: Please enter the total number of classified employees and employees with disabilities for each FY in the yellow boxes. Please also enter the total employees with disabilities for each FY who are leaders (defined as individuals with 2 or more direct reports) and who are executives (defined as the agency head and their direct reports). Please enter the same information for Veterans with Disabilities at the Agency.
N56: Workforce Information
P57: =IF($L$45="Snapshot",CONCATENATE("As of ",TEXT($N$46,"MM/DD/YY")),CONCATENATE("FY",RIGHT('DHRM ADMIN'!$P$15,2))) -> FY00
N58: =CONCATENATE("FY",RIGHT('DHRM ADMIN'!$P$15,2)-2) -> FY-2 | O58: =CONCATENATE("FY",RIGHT('DHRM ADMIN'!$P$15,2)-1) -> FY-1
M59: Total Classified Employees at the Agency
M60: Total Classified Employees with Disabilities at the Agency
M61: Total Classified Employees with Disabilities who are Leaders/Supervisors (2 or more direct reports)
M62: Total Classified Employees with Disabilities at the Agency who are Executives
M63: Total Classified Veterans with Disabilities at the Agency
M64: Total Classified Veterans with Disabilities who are Leaders/Supervisors (2 or more direct reports)
M65: Total Classified Veterans with Disabilities at the Agency who are Executives

Sheet WORKFORCE DATA
C6: WORKFORCE DATA
C9: The Workforce Data Tab guides agencies by identifying the key metrics included in the Employment Opportunities Plan, specifically recruitment and retention information. Data entered here feeds into a brief Workforce Insights tool on the Agency Strategy tab and into the overall EOP Summary. Data should be reflective of Classified Employees only for July 1st through May 31st of the reporting fiscal year.
B24: Step 1: Enter Classified Employee Recruitment Information | N24: =IF(AND(COUNTBLANK(P33:P36)=0,COUNTBLANK(P41:P44)=0),"Complete","Incomplete") -> Incomplete
B26: INSTRUCTIONS: Please enter the classified hiring and applicant information for the agency in the yellow boxes, to include the total hires, total applicants, and a breakdown of hires and applications for employees with disabilities. Please also enter the number of employees with disabilities that were hired to and applied to a leader/supervisor role (defined as individuals with 2 or more direct reports) and executive roles (defined as the agency head and their direct reports).
P30: Hiring Information
P31: =IF('AGENCY PROFILE'!$L$45="Snapshot",CONCATENATE("As of ",TEXT('AGENCY PROFILE'!$N$46,"MM/DD/YY")),CONCATENATE("FY",RIGHT('DHRM ADMIN'!$P$15,2))) -> FY00
N32: =CONCATENATE("FY",RIGHT('DHRM ADMIN'!$P$15,2)-2) -> FY-2 | O32: =CONCATENATE("FY",RIGHT('DHRM ADMIN'!$P$15,2)-1) -> FY-1
M33: Total Classified Hires at the Agency
M34: Total Classified Hires who were Employees with Disabilities
M35: Total Classified Employees with Disabilities hired to Leader/Supervisor Role (2 or more direct reports)
M36: Total Classified Employees with Disabilities hired to Executive Role
P38: Applicant Information
P39: =IF('AGENCY PROFILE'!$L$45="Snapshot",CONCATENATE("As of ",TEXT('AGENCY PROFILE'!$N$46,"MM/DD/YY")),CONCATENATE("FY",RIGHT('DHRM ADMIN'!$P$15,2))) -> FY00
N40: =CONCATENATE("FY",RIGHT('DHRM ADMIN'!$P$15,2)-2) -> FY-2 | O40: =CONCATENATE("FY",RIGHT('DHRM ADMIN'!$P$15,2)-1) -> FY-1
M41: Total Classified Applicants to Positions at the Agency
M42: Total Classified Applicants who were Employees with Disabilities
M43: Total Classified Employees with Disabilities that applied for a Leader/Supervisor Role (2 or more direct reports)
M44: Total Classified Employees with Disabilities that applied for an Executive Role
B47: Step 2: Enter Alternative Hiring Process Information | N47: =IF(COUNTBLANK(P55:P57)=0,"Complete","Incomplete") -> Incomplete
B49: INSTRUCTIONS: Please enter the following information regarding the alternative hiring process, launched in April of 2022, to include the total number of individuals who applied using this process, the total hired from this process, and the total employees of those hired with this process who transitioned to a classified position.
P52: Alternative Hiring Information
P53: =IF('AGENCY PROFILE'!$L$45="Snapshot",CONCATENATE("As of ",TEXT('AGENCY PROFILE'!$N$46,"MM/DD/YY")),CONCATENATE("FY",RIGHT('DHRM ADMIN'!$P$15,2))) -> FY00
N54: =CONCATENATE("FY",RIGHT('DHRM ADMIN'!$P$15,2)-2) -> FY-2 | O54: =CONCATENATE("FY",RIGHT('DHRM ADMIN'!$P$15,2)-1) -> FY-1
M55: Total Applicants that used the Alternative Hiring Process
M56: Total Individuals Hired from Alternative Hiring Process
M57: Total Employees Hired through Alternative Hiring Process that transitioned to a Classified Employee
B60: Step 3: Enter Classified Employee Retention Information | N60: =IF(AND(COUNTBLANK(P70:P73)=0,COUNTBLANK(P78:P81)=0,COUNTBLANK(P86:P89)=0,COUNTBLANK(P94:P97)=0,COUNTBLANK(P102:P105)=0),"Complete","Incomplete") -> Incomplete
B62: INSTRUCTIONS: Please enter the classified retention information in the yellow boxes, to include the average years of service, number of internal promotions, number of internal transfers, number of voluntary separations, and number of external transfers to other state agencies for classified employees and for employees with disabilities. Please also enter the number employees with disabilities who are in a leader/supervisor role (defined as individuals with 2 or more direct reports) and for employees with disabilities in executive roles (defined as the agency head and their direct reports) for each of these information areas.
P67: Agency Service Information
P68: =IF('AGENCY PROFILE'!$L$45="Snapshot",CONCATENATE("As of ",TEXT('AGENCY PROFILE'!$N$46,"MM/DD/YY")),CONCATENATE("FY",RIGHT('DHRM ADMIN'!$P$15,2))) -> FY00
N69: =CONCATENATE("FY",RIGHT('DHRM ADMIN'!$P$15,2)-2) -> FY-2 | O69: =CONCATENATE("FY",RIGHT('DHRM ADMIN'!$P$15,2)-1) -> FY-1
M70: Average Years of Service at the Agency for Classified Employees
M71: Average Years of Service for Classified Employees with Disabilities
M72: Average Years of Service for Classified Employees with Disabilities in a Leader/Supervisor Role (2 or more direct reports)
M73: Average Years of Service for Classified Employees with Disabilities in an Executive Role
P75: Internal Promotions Information
P76: =IF('AGENCY PROFILE'!$L$45="Snapshot",CONCATENATE("As of ",TEXT('AGENCY PROFILE'!$N$46,"MM/DD/YY")),CONCATENATE("FY",RIGHT('DHRM ADMIN'!$P$15,2))) -> FY00
N77: =CONCATENATE("FY",RIGHT('DHRM ADMIN'!$P$15,2)-2) -> FY-2 | O77: =CONCATENATE("FY",RIGHT('DHRM ADMIN'!$P$15,2)-1) -> FY-1
M78: Total Number of Internal Promotions of Classified Employees at the Agency
M79: Total Classified Internal Promotions who were Employees with Disabilities
M80: Total Classified Internal Promotions who were Employees with Disabilities to a Leader/Supervisor Role (2 or more direct reports)
M81: Total Classified Internal Promotions who were Employees with Disabilities to an Executive Role
P83: Internal Transfer Information
P84: =IF('AGENCY PROFILE'!$L$45="Snapshot",CONCATENATE("As of ",TEXT('AGENCY PROFILE'!$N$46,"MM/DD/YY")),CONCATENATE("FY",RIGHT('DHRM ADMIN'!$P$15,2))) -> FY00
N85: =CONCATENATE("FY",RIGHT('DHRM ADMIN'!$P$15,2)-2) -> FY-2 | O85: =CONCATENATE("FY",RIGHT('DHRM ADMIN'!$P$15,2)-1) -> FY-1
M86: Total Number of Internal Transfers of Classified Employees at the Agency
M87: Total Classified Internal Transfers who were Employees with Disabilities
M88: Total Classified Internal Transfers who were Employees with Disabilities to a Leader/Supervisor Role (2 or more direct reports)
M89: Total Classified Internal Transfers who were Employees with Disabilities to an Executive Role
P91: Voluntary Separations Information
P92: =IF('AGENCY PROFILE'!$L$45="Snapshot",CONCATENATE("As of ",TEXT('AGENCY PROFILE'!$N$46,"MM/DD/YY")),CONCATENATE("FY",RIGHT('DHRM ADMIN'!$P$15,2))) -> FY00
N93: =CONCATENATE("FY",RIGHT('DHRM ADMIN'!$P$15,2)-2) -> FY-2 | O93: =CONCATENATE("FY",RIGHT('DHRM ADMIN'!$P$15,2)-1) -> FY-1
M94: Total Number of Voluntary Separations of Classified Employees at the Agency
M95: Total Classified Voluntary Separations who were Employees with Disabilities
M96: Total Classified Voluntary Separations who were Employees with Disabilities to a Leader/Supervisor Role (2 or more direct reports)
M97: Total Classified Voluntary Separations who were Employees with Disabilities to an Executive Role
P99: External Transfers (to other State Agencies) Information
P100: =IF('AGENCY PROFILE'!$L$45="Snapshot",CONCATENATE("As of ",TEXT('AGENCY PROFILE'!$N$46,"MM/DD/YY")),CONCATENATE("FY",RIGHT('DHRM ADMIN'!$P$15,2))) -> FY00
N101: =CONCATENATE("FY",RIGHT('DHRM ADMIN'!$P$15,2)-2) -> FY-2 | O101: =CONCATENATE("FY",RIGHT('DHRM ADMIN'!$P$15,2)-1) -> FY-1
M102: Total Number of External Transfers of Classified Employees at the Agency
M103: Total Classified External Transfers who were Employees with Disabilities
M104: Total Classified External Transfers who were Employees with Disabilities to a Leader/Supervisor Role (2 or more direct reports)
M105: Total Classified External Transfers who were Employees with Disabilities to an Executive Role

Sheet AGENCY STRATEGY
S1: 1
S2: 1
S3: 1
S4: 1
S5: 1
C6: AGENCY STRATEGY | S6: 1
S7: 1
S8: 1
C9: The Agency Strategy tab first presents a quick analysis of the workforce data (in the Workforce Insights section) to assist with completing a SWOT Analysis and Strategic Action Plan. The SWOT Analysis is a reflective exercise to note the strengths, weaknesses, opportunities and threats that impact the recruitment, retention, engagement, and development of employees with disabilities. The action plan is an exercise to develop specific goals, using a format that outlines up to 5 overall objectives and up to 5 corresponding action items for each. | S9: 1
S10: 1
S11: 1
S12: 1
S13: 1
S14: 1
B15: Workforce Insights | S15: 1
S16: 1
B17: OPTIONAL USE: This workforce insights section provides a brief review of the information entered on the Agency Profile and Workforce Data tabs to assist with interpreting workforce data that can help in completing steps 1 and 2 of the Agency Strategy (this tab). To adjust the graphics, select a fiscal year and demographic group from the dropdown menus in the yellow boxes. | S17: 1
S18: 1
S19: 1
S20: 1
S21: 1
A22: Select Items Below to Change Graphics: | I22: Fiscal Year Entry / Exit | S22: 1
B23: Fiscal Year: | C23: FY23 | J23: Total Applicants | K23: =IFERROR('CENTRAL ANALYSIS'!B45,"") ->  | S23: 1
B24: Demographic | C24: ALL | J24: Total Hires | K24: =IFERROR('CENTRAL ANALYSIS'!B46,"") ->  | S24: 1
J25: Total Voluntary Separations | K25: =IFERROR('CENTRAL ANALYSIS'!B47,"") ->  | S25: 1
B26: Fiscal Year Demographics | J26: Total External Transfers | K26: =IFERROR('CENTRAL ANALYSIS'!B48,"") ->  | S26: 1
C27: Employees with Disabilities | D27: =IFERROR('CENTRAL ANALYSIS'!C25,"") ->  | S27: 1
C28: …who are Leaders/Sups. | D28: =IFERROR('CENTRAL ANALYSIS'!D25,"") ->  | S28: 1
C29: …who are Executives | D29: =IFERROR('CENTRAL ANALYSIS'!E25,"") ->  | S29: 1
C30: …who are Non-Leaders | D30: =IFERROR('CENTRAL ANALYSIS'!F25,"") ->  | S30: 1
S31: 1
S32: 1
I33: Internal Mobility | S33: 1
J34: Promotions | K34: =IFERROR('CENTRAL ANALYSIS'!B59,"") ->  | S34: 1
J35: Internal Transfers | K35: =IFERROR('CENTRAL ANALYSIS'!B60,"") ->  | S35: 1
S36: 1
S37: 1
S38: 1
S39: 1
S40: 1
S41: 1
B42: ='CENTRAL ANALYSIS'!J24 ->  | D42: ='CENTRAL ANALYSIS'!J31 ->  | F42: ='CENTRAL ANALYSIS'!K24 ->  | H42: ='CENTRAL ANALYSIS'!K31 ->  | J42: ='CENTRAL ANALYSIS'!L24 ->  | L42: ='CENTRAL ANALYSIS'!L31 ->  | N42: ='CENTRAL ANALYSIS'!M24 ->  | P42: ='CENTRAL ANALYSIS'!M31 ->  | S42: 1
S43: 1
B44: Hire Rate | F44: Candidate Hire Rate | J44: Internal Mobility Rate | N44: Vol. Separation Rate | S44: 1
F45: Candidate Hire Rate | N45: Candidate Hire Rate | S45: 1
B46: Hire Rate is the total number of hires of individuals with disabilities divided by the total number of employees. | F46: Candidate Hire Rate is the total number of hires of individuals with disabilities by the total number of applicants with disabilities. | J46: Internal Mobility Rate is the total number of internal promotions and transfers of individuals with disabilities divided by the total number of employees. | N46: Vol. Separation Rate is the total number of external transfers and voluntary separations of individuals with disabilities divided by the total number of employees. | S46: 1
S47: 1
S48: 1
S49: 1
S50: 1
B51: ='CENTRAL ANALYSIS'!J25 ->  | F51: ='CENTRAL ANALYSIS'!K25 ->  | J51: ='CENTRAL ANALYSIS'!L25 ->  | N51: ='CENTRAL ANALYSIS'!M25 ->  | S51: 1
S52: 1
S53: 1
B54: Total Hires | F54: Total Applicants | J54: Internal Promotions | N54: External Transfers | S54: 1
J55: ='CENTRAL ANALYSIS'!L26 ->  | N55: ='CENTRAL ANALYSIS'!M26 ->  | S55: 1
C56: Percent changes denote differences compared to the prior fiscal year. | S56: 1
S57: 1
J58: Internal Transfers | N58: Voluntary Separations | S58: 1
S59: 1
S60: 1
S61: 1
S62: 1
B63: Step 1: Complete a SWOT Analysis for the Agency | N63: =IF(COUNTIFS(N70,"Complete",N89,"Complete",N108,"Complete",N127,"Complete")=1,"Complete","Incomplete") -> Incomplete | S63: 1
S64: 1
B65: INSTRUCTIONS: A SWOT analysis (Strengths, Weaknesses, Opportunities, and Threats) is one of many tools organizations can utilize to reflect on their internal and external environments. See below for a description of each area of the SWOT analysis. Enter a brief, high level, description of the items in each respective category (recruitment, retention, engagement, and development) for each area of the analysis. Use the check box beneath each category if there is nothing to enter. | S65: 1
S66: 1
S67: 1
S68: 1
S69: 1
C70: Step 1(a): Enter Agency Strengths | N70: =IF(SUM('CENTRAL ANALYSIS'!B68:E68)=4,"Complete","Incomplete") -> Incomplete | S70: 1
S71: 1
C72: Strengths are elements INTERNAL to the Agency (defined as being within the control of the Agency) that ENHANCE an Agency's ability to recruit, retain, engage, and/or develop employees with disabilities. | S72: 1
S73: 1
S74: 1
E75: Recruitment | H75: Retention | K75: Engagement | N75: Learning / Development | S75: 1
H76: 0 | N76: 0 | S76: 0
S77: 0
S78: 0
S79: 0
S80: 0
S81: 1
S82: 1
S83: 1
S84: 1
S85: 1
S86: 1
S87: 1
S88: 1
C89: Step 1(b): Enter Agency Weaknesses | N89: =IF(SUM('CENTRAL ANALYSIS'!B73:E73)=4,"Complete","Incomplete") -> Incomplete | S89: 1
S90: 1
C91: Weaknesses are elements INTERNAL to the Agency (defined as being within the control of the Agency) that INHIBIT an Agency's ability to recruit, retain, engage, and/or develop employees with disabilities. | S91: 1
S92: 1
S93: 1
E94: Recruitment | H94: Retention | K94: Engagement | N94: Learning / Development | S94: 1
K95: 0 | N95: 0 | S95: 0
S96: 0
S97: 0
S98: 0
S99: 0
S100: 1
S101: 1
S102: 1
S103: 1
S104: 1
S105: 1
S106: 1
S107: 1
C108: Step 1(c): Enter Agency Opportunities | N108: =IF(SUM('CENTRAL ANALYSIS'!B78:E78)=4,"Complete","Incomplete") -> Incomplete | S108: 1
S109: 1
C110: Opportunities are elements EXTERNAL to the Agency (defined as being out of the control of the Agency) that may ENHANCE an Agency's ability to recruit, retain, engage, and/or develop employees with disabilities. | S110: 1
S111: 1
S112: 1
E113: Recruitment | H113: Retention | K113: Engagement | N113: Learning / Development | S113: 1
N114: 0 | S114: 0
S115: 0
S116: 0
S117: 0
S118: 0
S119: 1
S120: 1
S121: 1
S122: 1
S123: 1
S124: 1
S125: 1
S126: 1
C127: Step 1(d): Enter Agency Threats | N127: =IF(SUM('CENTRAL ANALYSIS'!B83:E83)=4,"Complete","Incomplete") -> Incomplete | S127: 1
S128: 1
C129: Threats are elements EXTERNAL to the Agency (defined as being out of the control of the Agency) that may INHIBIT an Agency's ability to recruit, retain, engage, and/or develop employees with disabilities. | S129: 1
S130: 1
S131: 1
E132: Recruitment | H132: Retention | K132: Engagement | N132: Learning / Development | S132: 1
K133: 0 | N133: 0 | S133: 0
S134: 0
S135: 0
S136: 0
S137: 0
S138: 1
S139: 1
S140: 1
S141: 1
S142: 1
S143: 1
S144: 1
S145: 1
S146: 1
B147: Step 2: Create, Track, or Modify Agency Strategy (If not using Macros, go to Step 2(a)) | N147: =IF('CENTRAL ANALYSIS'!$B$90=0,"Incomplete",IF(COUNTIF(C154:P352,"Complete")='CENTRAL ANALYSIS'!$B$90,"Complete","Incomplete")) -> Incomplete | S147: 1
S148: 1
B149: INSTRUCTIONS: Using both the Workforce Insights and SWOT Analysis, please either create a strategic action plan, provide progress updates for current objectives, or modify the existing agency strategy to address the recruitment, retention, engagement and development of employees with disabilities. Each item should include an overall objective statement and then specific action items to take in order to fulfill that objective. Objectives can be added by clicking the "Add Objective" button, for a total of 5 overall objectives per plan. | S149: 1
S150: 1
S151: 1
S152: 1
S153: 1
C154: Objective | N154: =IF(S154<>1,"",IF(AND('CENTRAL ANALYSIS'!$D$91='CENTRAL ANALYSIS'!$B$97+1,D161<>"◄NEW►",H189<>"",H190<>""),"Complete",IF(AND('CENTRAL ANALYSIS'!$D$91='CENTRAL ANALYSIS'!$B$97+1,D161="◄NEW►"),"Complete","Incomplete"))) ->  | S154: =IF('CENTRAL ANALYSIS'!$B$90>=1,1,0) -> 0
S155: =IF('CENTRAL ANALYSIS'!$B$90>=1,1,0) -> 0
C156: Please enter the item objective statement and corresponding action items. Action items can be added by clicking the "Add Action Item" button, or existing actions can be modified, for a total of 5 action items per each objective. Action items should describe what the action is and how it will be measured. A brief summary of progress can be provided by clicking the "Add Progress Update" button for existing objectives. | S156: =IF('CENTRAL ANALYSIS'!$B$90>=1,1,0) -> 0
S157: =IF('CENTRAL ANALYSIS'!$B$90>=1,1,0) -> 0
S158: =IF('CENTRAL ANALYSIS'!$B$90>=1,1,0) -> 0
S159: =IF('CENTRAL ANALYSIS'!$B$90>=1,1,0) -> 0
E160: Overall Objective Statement | S160: =IF('CENTRAL ANALYSIS'!$B$90>=1,1,0) -> 0
D161: =IF($F$160='IMPORTED DATA'!$O$71,"",IF(AND('IMPORTED DATA'!$O$71=0,'AGENCY STRATEGY'!$F$160<>""),'CENTRAL DATA'!$M$15,IF(AND('IMPORTED DATA'!$O$71<>0,'IMPORTED DATA'!$O$71<>'AGENCY STRATEGY'!$F$160),'CENTRAL DATA'!$M$14,""))) ->  | S161: =IF('CENTRAL ANALYSIS'!$B$90>=1,1,0) -> 0
S162: =IF('CENTRAL ANALYSIS'!$B$90>=1,1,0) -> 0
S163: =IF('CENTRAL ANALYSIS'!$B$90>=1,1,0) -> 0
S164: =IF('CENTRAL ANALYSIS'!$B$90>=1,1,0) -> 0
S165: =IF('CENTRAL ANALYSIS'!$B$90>=1,1,0) -> 0
G166: Action Item | S166: =IF('CENTRAL ANALYSIS'!$B$97>=1,1,0) -> 0
F167: =IF($H$166='IMPORTED DATA'!$O$72,"",IF(AND('IMPORTED DATA'!$O$72=0,'AGENCY STRATEGY'!$H$166<>""),'CENTRAL DATA'!$M$15,IF(AND('IMPORTED DATA'!$O$72<>0,'IMPORTED DATA'!$O$72<>'AGENCY STRATEGY'!$H$166),'CENTRAL DATA'!$M$14,""))) ->  | S167: =IF('CENTRAL ANALYSIS'!$B$97>=1,1,0) -> 0
S168: =IF('CENTRAL ANALYSIS'!$B$97>=1,1,0) -> 0
G169: Action Item | S169: =IF('CENTRAL ANALYSIS'!$B$97>=2,1,0) -> 0
F170: =IF($H$169='IMPORTED DATA'!$O$73,"",IF(AND('IMPORTED DATA'!$O$73=0,'AGENCY STRATEGY'!$H$169<>""),'CENTRAL DATA'!$M$15,IF(AND('IMPORTED DATA'!$O$73<>0,'IMPORTED DATA'!$O$73<>'AGENCY STRATEGY'!$H$169),'CENTRAL DATA'!$M$14,""))) ->  | S170: =IF('CENTRAL ANALYSIS'!$B$97>=2,1,0) -> 0
S171: =IF('CENTRAL ANALYSIS'!$B$97>=2,1,0) -> 0
G172: Action Item | S172: =IF('CENTRAL ANALYSIS'!$B$97>=3,1,0) -> 0
F173: =IF($H$172='IMPORTED DATA'!$O$74,"",IF(AND('IMPORTED DATA'!$O$74=0,'AGENCY STRATEGY'!$H$172<>""),'CENTRAL DATA'!$M$15,IF(AND('IMPORTED DATA'!$O$74<>0,'IMPORTED DATA'!$O$74<>'AGENCY STRATEGY'!$H$172),'CENTRAL DATA'!$M$14,""))) ->  | S173: =IF('CENTRAL ANALYSIS'!$B$97>=3,1,0) -> 0
S174: =IF('CENTRAL ANALYSIS'!$B$97>=3,1,0) -> 0
G175: Action Item | S175: =IF('CENTRAL ANALYSIS'!$B$97>=4,1,0) -> 0
F176: =IF($H$175='IMPORTED DATA'!$O$75,"",IF(AND('IMPORTED DATA'!$O$75=0,'AGENCY STRATEGY'!$H$175<>""),'CENTRAL DATA'!$M$15,IF(AND('IMPORTED DATA'!$O$75<>0,'IMPORTED DATA'!$O$75<>'AGENCY STRATEGY'!$H$175),'CENTRAL DATA'!$M$14,""))) ->  | S176: =IF('CENTRAL ANALYSIS'!$B$97>=4,1,0) -> 0
S177: =IF('CENTRAL ANALYSIS'!$B$97>=4,1,0) -> 0
G178: Action Item | S178: =IF('CENTRAL ANALYSIS'!$B$97>=5,1,0) -> 0
F179: =IF($H$178='IMPORTED DATA'!$O$76,"",IF(AND('IMPORTED DATA'!$O$76=0,'AGENCY STRATEGY'!$H$178<>""),'CENTRAL DATA'!$M$15,IF(AND('IMPORTED DATA'!$O$76<>0,'IMPORTED DATA'!$O$76<>'AGENCY STRATEGY'!$H$178),'CENTRAL DATA'!$M$14,""))) ->  | S179: =IF('CENTRAL ANALYSIS'!$B$97>=5,1,0) -> 0
S180: =IF('CENTRAL ANALYSIS'!$B$97>=5,1,0) -> 0
S181: =IF('CENTRAL ANALYSIS'!$F$91="yes",1,0) -> 0
G182: Date of Update | S182: 0
G183: Objective Progress Summary | S183: 0
S184: 0
S185: 0
S186: 0
S187: 0
S188: 0
G189: Date of Update | S189: =IF('CENTRAL ANALYSIS'!$F$91="yes",1,0) -> 0
G190: Objective Progress Summary | S190: =IF('CENTRAL ANALYSIS'!$F$91="yes",1,0) -> 0
S191: =IF('CENTRAL ANALYSIS'!$F$91="yes",1,0) -> 0
S192: =IF('CENTRAL ANALYSIS'!$F$91="yes",1,0) -> 0
S193: =IF('CENTRAL ANALYSIS'!$F$91="yes",1,0) -> 0
S194: =IF('CENTRAL ANALYSIS'!$F$91="yes",1,0) -> 0
S195: =IF('CENTRAL ANALYSIS'!$F$91="yes",1,0) -> 0
S196: =IF('CENTRAL ANALYSIS'!$F$91="yes",1,0) -> 0
S197: =IF('CENTRAL ANALYSIS'!$F$91="yes",1,0) -> 0
S198: =IF('CENTRAL ANALYSIS'!$F$91="yes",1,0) -> 0
S199: =IF('CENTRAL ANALYSIS'!$B$90>=2,1,0) -> 0
C200: Objective | N200: =IF(S200<>1,"",IF(AND('CENTRAL ANALYSIS'!$D$99='CENTRAL ANALYSIS'!B105+1,D207<>"◄NEW►",H235<>"",H236<>""),"Complete",IF(AND('CENTRAL ANALYSIS'!$D$99='CENTRAL ANALYSIS'!B105+1,D207="◄NEW►"),"Complete","Incomplete"))) ->  | S200: =IF('CENTRAL ANALYSIS'!$B$90>=2,1,0) -> 0
... 216 more rows

Sheet EOP SUMMARY
V1: 1
V2: 1
V3: 1
V4: 1
V5: 1
C6: EOP SUMMARY | V6: 1
V7: 1
V8: 1
C9: The Employment Opportunity Summary compiles the information from the previous tabs into a single report. It begins with an overall summary and then displays graphics for key workforce metrics, the SWOT analysis graphic (which can be omitted) and presents the agency strategy objectives and action items. After the report is completed, it can be exported as a PDF to be signed either electronically or by hand. Procedures to submit the report are detailed at the bottom of this tab. | V9: 1
V10: 1
V11: 1
V12: 1
V13: 1
F14: =IF(AND($C$93="yes",SUBTOTAL(103,$V$97)<>1),"REPORT NEEDS TO BE REFRESHED. CLICK THE REFRESH BUTTON TO THE RIGHT.",IF(SUMIF($V$1:$V$344,1)<>SUBTOTAL(103,$V$1:$V$344),"REPORT NEEDS TO BE REFRESHED. CLICK THE REFRESH BUTTON TO THE RIGHT.","REPORT IS UP TO DATE.")) -> REPORT IS UP TO DATE. | V14: 1
V15: 1
V16: 1
V17: 1
V18: 1
B19: Step 1: Complete EOP Summary Report | O19: =IF(AND(O25="Complete",O30="Complete"),"Complete","Incomplete") -> Incomplete | V19: 1
V20: 1
B21: INSTRUCTIONS: Before the report is exported, a few additional notes will need to be entered. These include an overall summary and notes for the SWOT Analysis, indicated by the yellow boxes. The notes on the SWOT analysis can be skipped if the SWOT Analysis is omitted from the report (indicated in the optional settings blue column). Some optional settings may be adjusted as needed, noted in the blue column on the left. | V21: 1
V22: 1
V23: 1
V24: 1
C25: Step 1(a): Enter Report Summary | O25: =IF(F45<>"","Complete","Incomplete") -> Incomplete | V25: 1
V26: 1
C27: In the first section of the report, enter a summary in the yellow box of key findings, prior actions to promote the employment of individuals with disabilities and their impacts, and a brief discussion of the future actions that will be taken. | V27: 1
V28: 1
V29: 1
C30: Step 1(b): Enter Brief Overview and Notes for SWOT Analysis | O30: =IF(C93="No","Complete",IF(AND(F100<>"",F110<>"",M110<>"",F147<>"",M147<>""),"Complete","Incomplete")) -> Incomplete | V30: 1
V31: 1
C32: If chosen to include in the report, please enter an overall summary of the SWOT Analysis as well as notes for each of the four areas (Strengths, Weaknesses, Opportunities, and Threats) in the yellow boxes on the SWOT Analysis to give additional context to those outlined in the graphic. | V32: 1
V33: 1
V34: 1
V35: 1
E36: ='AGENCY PROFILE'!J29 -> 0 | V36: 1
B37: See Below for Optional Settings for this Report | V37: 1
V38: 1
E39: =CONCATENATE("Agency Number: ",'AGENCY PROFILE'!P31) -> Agency Number: | V39: 1
V40: 1
B41: Optional: Include Indicators for Changes to Prior Year: | E41: Employment Opportunities Plan | M41: =IF(AND('AGENCY PROFILE'!L45="Fiscal Year EOP",'CENTRAL ANALYSIS'!L14=1),"Invalid Date of Report Entered",IF('AGENCY PROFILE'!L45="Fiscal Year EOP",CONCATENATE("Fiscal Year ",'DHRM ADMIN'!P15),IF('AGENCY PROFILE'!L45="Snapshot",CONCATENATE("As of: ",TEXT('AGENCY PROFILE'!N46,"mm/dd/yyyy")),""))) ->  | V41: 1
V42: 1
B43: Select: | C43: Yes | E43: Summary of Efforts to Increase Employment of Individuals with Disabilities | V43: 1
V44: 1
V45: 1
V46: 1
V47: 1
V48: 1
V49: 1
V50: 1
V51: 1
V52: 1
V53: 1
E54: Fiscal Year Workforce Breakdown and Metrics - Employees with Disabilities (Metrics Reflect Classified Employees Only) | V54: 1
V55: 1
V56: 1
B57: Optional: Change Speedometer Goal Colors NOTE: Speedometer represents 10% of Classified Employees | V57: 1
J58: ='CENTRAL ANALYSIS'!B211 -> 0 | M58: Total Classified Employees with Disabilities | Q58: ='CENTRAL ANALYSIS'!Q211 -> ◄►0 | V58: 1
V59: 1
V60: 1
B61: Red (High Priority Area) | V61: 1
B62: Enter %: | C62: 0.035 | K62: ='CENTRAL ANALYSIS'!B213 -> 0 | L62: ='CENTRAL ANALYSIS'!Q213 -> ◄►0 | M62: ='CENTRAL ANALYSIS'!B214 -> 0 | N62: ='CENTRAL ANALYSIS'!Q214 -> ◄►0 | O62: ='CENTRAL ANALYSIS'!B215 -> 0 | P62: ='CENTRAL ANALYSIS'!Q215 -> ◄►0 | V62: 1
V63: 1
V64: 1
B65: Yellow (Priority Area) | K65: Are in a Leader or Supervisory Role | M65: Are in an Executive Role | O65: Employees with Disabilities are Veterans | V65: 1
B66: Enter %: | C66: 0.05 | V66: 1
B67: Cannot be less than 5% | V67: 1
V68: 1
B69: Green (Goal Achieved) | V69: 1
B70: Enter %: | C70: =C66 -> 0.05 | V70: 1
V71: 1
F72: ='CENTRAL ANALYSIS'!B222 -> 0 | G72: ='CENTRAL ANALYSIS'!I222 -> ◄►0 | H72: ='CENTRAL ANALYSIS'!B220 -> 0 | I72: ='CENTRAL ANALYSIS'!I220 -> ◄►0 | V72: 1
B73: Optional: Change Colors to Identify Key Metrics | V73: 1
F74: Employees with Disabilities Applicants | H74: Employee with Disabilities Hires | V74: 1
C75: Metric | D75: Change | V75: 1
B76: Total | V76: 1
B77: Leader | V77: 1
B78: Executive | V78: 1
B79: Veteran | F79: ='CENTRAL ANALYSIS'!B226 -> 0 | G79: ='CENTRAL ANALYSIS'!I226 -> ◄►0 | H79: ='CENTRAL ANALYSIS'!B228 -> 0 | I79: ='CENTRAL ANALYSIS'!I228 -> ◄►0 | V79: 1
B80: Applicants | V80: 1
B81: Hires | F81: Employees with Disabilities Transfers | H81: Employee with Disabilities Promotions | V81: 1
B82: Transfers | V82: 1
V83: 1
B84: Promotions | V84: 1
B85: Separations | V85: 1
B86: Ex. Transfer | F86: ='CENTRAL ANALYSIS'!B232 -> 0 | G86: ='CENTRAL ANALYSIS'!I232 -> ◄►0 | H86: ='CENTRAL ANALYSIS'!B234 -> 0 | I86: ='CENTRAL ANALYSIS'!I234 -> ◄►0 | V86: 1
B87: AHP App | V87: 1
B88: AHP Hire | F88: Employees with Disabilities | H88: Employee with Disabilities Transfers | V88: 1
B89: AHP Class | V89: 1
F90: Alternative Hiring Process Metrics: | V90: 1
B91: Optional: Include SWOT Analysis In Report? | J91: ='CENTRAL ANALYSIS'!B296 -> 0 | K91: ='CENTRAL ANALYSIS'!G296 -> ◄►0 | M91: ='CENTRAL ANALYSIS'!B297 -> 0 | N91: ='CENTRAL ANALYSIS'!G297 -> ◄►0 | P91: ='CENTRAL ANALYSIS'!B298 -> 0 | Q91: ='CENTRAL ANALYSIS'!G298 -> ◄►0 | V91: 1
V92: 1
B93: Select: | C93: Yes | J93: Applications Received through the Process | L93: Individuals Hired Through the Process | O93: Hired Individuals Transitioned to Classified | V93: 1
V94: 1
V95: 1
E96: Agency SWOT Analysis for Employment of Individuals with Disabilities | V96: =IF($C$93<>"yes",0,1) -> 1
V97: =IF($C$93<>"yes",0,1) -> 1
E98: Brief Overview of SWOT Analysis | V98: 1
V99: 1
V100: 1
V101: 1
V102: 1
V103: 1
V104: 1
V105: 1
V106: 1
V107: 1
V108: 1
V109: 1
V110: 1
V111: 1
V112: 1
V113: 1
V114: 1
V115: 1
V116: 1
V117: 1
V118: 1
V119: 1
V120: 1
V121: 1
V122: 1
V123: 1
V124: 1
V125: 1
V126: 1
V127: 1
V128: 1
V129: 1
V130: 1
V131: 1
V132: 1
V133: 1
V134: 1
V135: 1
V136: 1
V137: 1
V138: 1
V139: 1
V140: 1
V141: 1
V142: 1
V143: 1
V144: 1
V145: 1
V146: 1
V147: 1
V148: 1
V149: 1
V150: 1
V151: 1
V152: 1
V153: 1
E154: Upcoming Fiscal Year Action Plan | V154: 1
V155: 1
V156: 1
B157: Optional: Add Title to Objective 1 | F157: =IF(AND('AGENCY STRATEGY'!D161="",B159=""),"Objective",IF(AND('AGENCY STRATEGY'!D161<>"",B159=""),CONCATENATE('AGENCY STRATEGY'!D161," Objective"),IF(AND('AGENCY STRATEGY'!D161="",B159<>""),CONCATENATE("Objective: ",B159),IF(AND('AGENCY STRATEGY'!D161<>"",B159<>""),CONCATENATE('AGENCY STRATEGY'!D161," Objective: ",B159))))) -> Objective | V157: =IF($F159<>"",1,0) -> 0
V158: =IF($F159<>"",1,0) -> 0
F159: =IF('AGENCY STRATEGY'!F160="","",'AGENCY STRATEGY'!F160) ->  | V159: =IF($F159<>"",1,0) -> 0
V160: =IF($F159<>"",1,0) -> 0
V161: =IF($F159<>"",1,0) -> 0
H162: Action Item: | I162: =IF('AGENCY STRATEGY'!H166="","",'AGENCY STRATEGY'!H166) ->  | V162: =IF($I162<>"",1,0) -> 0
G163: ='AGENCY STRATEGY'!F167 ->  | V163: =IF($I162<>"",1,0) -> 0
V164: =IF($I162<>"",1,0) -> 0
H165: Action Item: | I165: =IF('AGENCY STRATEGY'!H169="","",'AGENCY STRATEGY'!H169) ->  | V165: =IF($I165<>"",1,0) -> 0
G166: ='AGENCY STRATEGY'!F170 ->  | V166: =IF($I165<>"",1,0) -> 0
V167: =IF($I165<>"",1,0) -> 0
H168: Action Item: | I168: =IF('AGENCY STRATEGY'!H172="","",'AGENCY STRATEGY'!H172) ->  | V168: =IF($I168<>"",1,0) -> 0
G169: ='AGENCY STRATEGY'!F173 ->  | V169: =IF($I168<>"",1,0) -> 0
V170: =IF($I168<>"",1,0) -> 0
H171: Action Item: | I171: =IF('AGENCY STRATEGY'!H175="","",'AGENCY STRATEGY'!H175) ->  | V171: =IF($I171<>"",1,0) -> 0
G172: ='AGENCY STRATEGY'!F176 ->  | V172: =IF($I171<>"",1,0) -> 0
V173: =IF($I171<>"",1,0) -> 0
H174: Action Item: | I174: =IF('AGENCY STRATEGY'!H178="","",'AGENCY STRATEGY'!H178) ->  | V174: =IF($I174<>"",1,0) -> 0
G175: ='AGENCY STRATEGY'!F179 ->  | V175: =IF($I174<>"",1,0) -> 0
V176: =IF($I174<>"",1,0) -> 0
F177: ********************************************************************************************************* | V177: =IF(AND($F159<>"",COUNTIF($F157,"*new*")=0),1,0) -> 0
H178: Objective Progress Summary: | I178: =IF(AND('CENTRAL ANALYSIS'!G89=1,'AGENCY STRATEGY'!H190=""),"No Update Provided at this Time.",IF('AGENCY STRATEGY'!H190="","",'AGENCY STRATEGY'!H190)) -> No Update Provided at this Time. | V178: =IF(AND($F159<>"",COUNTIF($F157,"*new*")=0),1,0) -> 0
V179: =IF(AND($F159<>"",COUNTIF($F157,"*new*")=0),1,0) -> 0
V180: =IF(AND($F159<>"",COUNTIF($F157,"*new*")=0),1,0) -> 0
V181: =IF(AND($F159<>"",COUNTIF($F157,"*new*")=0),1,0) -> 0
V182: =IF(AND($F159<>"",COUNTIF($F157,"*new*")=0),1,0) -> 0
V183: =IF(AND($F159<>"",COUNTIF($F157,"*new*")=0),1,0) -> 0
V184: =IF($F187<>"",1,0) -> 0
B185: Optional: Add Title to Objective 2 | F185: =IF(AND('AGENCY STRATEGY'!D207="",B187=""),"Objective",IF(AND('AGENCY STRATEGY'!D207<>"",B187=""),CONCATENATE('AGENCY STRATEGY'!D207," Objective"),IF(AND('AGENCY STRATEGY'!D207="",B187<>""),CONCATENATE("Objective: ",B187),IF(AND('AGENCY STRATEGY'!D207<>"",B187<>""),CONCATENATE('AGENCY STRATEGY'!D207," Objective: ",B187))))) -> Objective | V185: =IF($F187<>"",1,0) -> 0
V186: =IF($F187<>"",1,0) -> 0
F187: =IF('AGENCY STRATEGY'!F206="","",'AGENCY STRATEGY'!F206) ->  | V187: =IF($F187<>"",1,0) -> 0
V188: =IF($F187<>"",1,0) -> 0
V189: =IF($F$187<>"",1,0) -> 0
H190: Action Item: | I190: =IF('AGENCY STRATEGY'!H212="","",'AGENCY STRATEGY'!H212) ->  | V190: =IF($I190<>"",1,0) -> 0
G191: ='AGENCY STRATEGY'!F213 ->  | V191: =IF($I190<>"",1,0) -> 0
V192: =IF($I190<>"",1,0) -> 0
H193: Action Item: | I193: =IF('AGENCY STRATEGY'!H215="","",'AGENCY STRATEGY'!H215) ->  | V193: =IF($I193<>"",1,0) -> 0
G194: ='AGENCY STRATEGY'!F216 ->  | V194: =IF($I193<>"",1,0) -> 0
V195: =IF($I193<>"",1,0) -> 0
H196: Action Item: | I196: =IF('AGENCY STRATEGY'!H218="","",'AGENCY STRATEGY'!H218) ->  | V196: =IF($I196<>"",1,0) -> 0
G197: ='AGENCY STRATEGY'!F219 ->  | V197: =IF($I196<>"",1,0) -> 0
V198: =IF($I196<>"",1,0) -> 0
H199: Action Item: | I199: =IF('AGENCY STRATEGY'!H221="","",'AGENCY STRATEGY'!H221) ->  | V199: =IF($I199<>"",1,0) -> 0
G200: ='AGENCY STRATEGY'!F222 ->  | V200: =IF($I199<>"",1,0) -> 0
... 145 more rows

Sheet CENTRAL DATA (hidden)
C6: CENTRAL DATA
C9: This tab serves as a central place for all data for drop down lists or look up formulas within the tool.
A13: Agency Names | B13: Secretary | C13: Agency Number | E13: Fiscal Year | F13: Demographic | G13: PY | H13: Yes/No | J13: Home Tab Pictures | M13: Agency Strategy Changes | O13: Summary Colors | Q13: Summary Colors
A14: Assistive Technology Loan Fund Authority | B14: Health and Human Resources | E14: =CONCATENATE("FY",RIGHT('DHRM ADMIN'!$P$15,2)+0) -> FY0 | F14: ALL | G14: =E15 -> FY-1 | H14: Yes | J14: LOCKED | M14: ◄MODIFIED► | O14: Purple | Q14: Fiscal Year EOP
A15: Blue Ridge Community College | B15: Higher Education | C15: 291 | E15: =IF('DHRM ADMIN'!$P$16>=1,CONCATENATE("FY",RIGHT('DHRM ADMIN'!$P$15,2)-1),"") -> FY-1 | F15: Non-Leader | G15: =E16 -> FY-2 | H15: No | J15: UNLOCKED | M15: ◄NEW► | O15: Red | Q15: Snapshot
A16: Board of Accountancy | B16: Finance | C16: 226 | E16: =IF('DHRM ADMIN'!$P$16>=2,CONCATENATE("FY",RIGHT('DHRM ADMIN'!$P$15,2)-2),"") -> FY-2 | F16: Leader/Sup | O16: Yellow
A17: Brightpoint Community College | B17: Higher Education | C17: 290 | E17: =IF('DHRM ADMIN'!$P$16>=3,CONCATENATE("FY",RIGHT('DHRM ADMIN'!$P$15,2)-3),"") ->  | F17: Executive | O17: Green
A18: Center for Innovative Technology | B18: Independent | E18: =IF('DHRM ADMIN'!$P$16>=4,CONCATENATE("FY",RIGHT('DHRM ADMIN'!$P$15,2)-4),"") -> 
A19: Central Virginia Community College | B19: Higher Education | C19: 292 | E19: =IF('DHRM ADMIN'!$P$16=5,CONCATENATE("FY",RIGHT('DHRM ADMIN'!$P$15,2)-5),"") -> 
A20: Christopher Newport University | B20: Higher Education | C20: 242
A21: Commonwealth's Attorneys' Services Council | B21: Public Safety and Homeland Security
A22: Compensation Board | B22: Administration | C22: 157
A23: Danville Community College | B23: Higher Education | C23: 279
A24: Department for Aging and Rehabilitative Services | B24: Health and Human Resources | C24: 262
A25: Department for the Blind and Vision Impaired | B25: Health and Human Resources | C25: 702
A26: Department for the Deaf and Hard of Hearing | B26: Health and Human Resources | C26: 751
A27: Department of Accounts | B27: Finance | C27: 151
A28: Department of Aviation | B28: Transportation | C28: 841
A29: Department of Behavioral Health and Developmental Services | B29: Health and Human Resources | C29: 720
A30: Department of Corrections | B30: Public Safety and Homeland Security | C30: 701
A31: Department of Criminal Justice Services | B31: Public Safety and Homeland Security | C31: 140
A32: Department of Education | B32: Education | C32: 201
A33: Department of Elections | B33: Administration | C33: 132
A34: Department of Emergency Management | B34: Public Safety and Homeland Security | C34: 127
A35: Department of Energy | B35: Commerce and Trade | C35: 409
A36: Department of Environmental Quality | B36: Natural Resources | C36: 440
A37: Department of Forensic Science | B37: Public Safety and Homeland Security | C37: 778
A38: Department of Forestry | B38: Agriculture and Forestry | C38: 411
A39: Department of General Services | B39: Administration | C39: 194
A40: Department of Health Professions | B40: Health and Human Resources | C40: 223
A41: Department of Historic Resources | B41: Natural Resources | C41: 423
A42: Department of Housing & Community Development | B42: Commerce and Trade | C42: 165
A43: Department of Human Resources Management | B43: Administration | C43: 129
A44: Department of Juvenile Justice | B44: Public Safety and Homeland Security | C44: 777
A45: Department of Labor and Industry | B45: Commerce and Trade | C45: 181
A46: Department of Medical Assistance Services | B46: Health and Human Resources | C46: 602
A47: Department of Military Affairs | B47: Veterans and Defense Affairs | C47: 123
A48: Department of Motor Vehicles | B48: Transportation | C48: 154
A49: Department of Planning and Budget | B49: Administration | C49: 122
A50: Department of Professional and Occupational Regulation | B50: Commerce and Trade | C50: 222
A51: Department of Rail and Public Transportation | B51: Transportation | C51: 505
A52: Department of Small Business and Supplier Diversity | B52: Commerce and Trade | C52: 350
A53: Department of Social Services | B53: Health and Human Resources | C53: 765
A54: Department of State Police | B54: Public Safety and Homeland Security | C54: 156
A55: Department of Taxation | B55: Finance | C55: 161
A56: Department of the Treasury | B56: Finance | C56: 152
A57: Department of Transportation | B57: Transportation | C57: 501
A58: Department of Veterans Services | B58: Veterans and Defense Affairs | C58: 912
A59: Department of Wildlife Resources | B59: Natural Resources | C59: 403
A60: Department of Workforce Development and Advancement | B60: Labor | C60: 327
A61: Eastern Shore Community College | B61: Higher Education | C61: 284
A62: Foundation for Healthy Youth | B62: Health and Human Resources | C62: 852
A63: Frontier Culture Museum of Virginia | B63: Education | C63: 239
A64: George Mason University | B64: Higher Education | C64: 247
A65: Germanna Community College | B65: Higher Education | C65: 297
A66: Gunston Hall | B66: Education | C66: 417
A67: J. Sargeant Reynolds Community College | B67: Higher Education | C67: 283
A68: James Madison University | B68: Higher Education | C68: 216
A69: Jamestown-Yorktown Foundation | B69: Education | C69: 425
A70: Jones and Cabacoy Veterans Care Center | B70: Veterans and Defense Affairs | C70: 903
A71: Laurel Ridge Community College | B71: Higher Education | C71: 298
A72: Library of Virginia | B72: Education | C72: 202
A73: Longwood University | B73: Higher Education | C73: 214
A74: Marine Resources Commission | B74: Natural Resources | C74: 402
A75: Motor Vehicle Dealer Board | B75: Transportation | C75: 506
A76: Mountain Empire Community College | B76: Higher Education | C76: 299
A77: Mountain Gateway Community College | B77: Higher Education | C77: 287
A78: New College Institute | B78: Higher Education | C78: 938
A79: New River Community College | B79: Higher Education | C79: 275
A80: Norfolk State University | B80: Higher Education | C80: 213
A81: Northern Virginia Community College | B81: Higher Education | C81: 280
A82: Northern Virginia Mental Health Institute | B82: Health and Human Resources
A83: Office of the State Inspector General | B83: Independent | C83: 147
A84: Old Dominion University | B84: Higher Education | C84: 221
A85: Patrick & Henry Community College | B85: Higher Education | C85: 285
A86: Paul D. Camp Community College | B86: Higher Education | C86: 277
A87: Piedmont Virginia Community College | B87: Higher Education | C87: 282
A88: Radford University | B88: Higher Education | C88: 217
A89: Rappahannock Community College | B89: Higher Education | C89: 278
A90: Richard Bland College | B90: Higher Education | C90: 241
A91: Sitter and Barfoot Veterans Care Center | B91: Veterans and Defense Affairs | C91: 922
A92: Southern Virginia Higher Education Center | B92: Higher Education | C92: 937
A93: Southside Virginia Community College | B93: Higher Education | C93: 276
A94: Southwest Virginia Community College | B94: Higher Education | C94: 294
A95: Southwest Virginia Higher Education Center | B95: Higher Education | C95: 948
A96: State Corporation Commission | B96: Independent | C96: 171
A97: State Council for Higher Education for Virginia | B97: Education | C97: 245
A98: The College of William and Mary | B98: Higher Education | C98: 204
A99: The Science Museum of Virginia | B99: Education | C99: 146
A100: Tidewater Community College | B100: Higher Education | C100: 295
A101: University of Mary Washington | B101: Higher Education | C101: 215
A102: University of Virginia | B102: Higher Education | C102: 207
A103: University of Virginia at Wise | B103: Higher Education | C103: 246
A104: University of Virginia Medical Center | B104: Higher Education | C104: 209
A105: VCCS Shared Services Center | B105: Higher Education | C105: 270
A106: VCCS System Office | B106: Higher Education | C106: 270
A107: Virginia Alcoholic Beverage Control | B107: Independent | C107: 999
A108: Virginia Board for People with Disabilities | B108: Health and Human Resources | C108: 606
A109: Virginia Commercial Space Flight Authority | B109: Transportation
A110: Virginia Commission for the Arts | B110: Education | C110: 148
A111: Virginia Commonwealth University | B111: Higher Education | C111: 236
A112: Virginia Commonwealth University Health Systems Authority | B112: Independent
A113: Virginia Community College System | B113: Higher Education | C113: 261
A114: Virginia Department of Agriculture and Consumer Services | B114: Agriculture and Forestry | C114: 301
A115: Virginia Department of Conservation and Recreation | B115: Natural Resources | C115: 199
A116: Virginia Department of Fire Programs | B116: Public Safety and Homeland Security | C116: 960
A117: Virginia Department of Health | B117: Health and Human Resources | C117: 601
A118: Virginia Economic Development Partnership | B118: Commerce and Trade | C118: 310
A119: Virginia Employment Commission | B119: Commerce and Trade | C119: 182
A120: Virginia Highlands Community College | B120: Higher Education | C120: 296
A121: Virginia Housing Development Authority | B121: Commerce and Trade
A122: Virginia Information Technologies Agency | B122: Administration | C122: 136
A123: Virginia Lottery | B123: Independent | C123: 172
A124: Virginia Military Institute | B124: Higher Education | C124: 211
A125: Virginia Museum of Fine Arts | B125: Education | C125: 238
A126: Virginia Museum of Natural History | B126: Education | C126: 942
A127: Virginia Parole Board | B127: Public Safety and Homeland Security | C127: 766
A128: Virginia Peninsula Community College | B128: Higher Education | C128: 293
A129: Virginia Polytechnic Institute and State University | B129: Higher Education | C129: 208
A130: Virginia Port Authority | B130: Transportation | C130: 407
A131: Virginia Racing Commission | B131: Agriculture and Forestry | C131: 405
A132: Virginia Resources Authority | B132: Finance
A133: Virginia Retirement System | B133: Independent | C133: 158
A134: Virginia School for the Deaf and the Blind | B134: Education | C134: 218
A135: Virginia State University | B135: Higher Education | C135: 212
A136: Virginia Tobacco Region Revitalization Commission | B136: Commerce and Trade | C136: 851
A137: Virginia Tourism Corporation | B137: Commerce and Trade | C137: 320
A138: Virginia Veterans Care Center | B138: Veterans and Defense Affairs | C138: 128
A139: Virginia Western Community College | B139: Higher Education | C139: 286
A140: Virginia Workers' Compensation Commission | B140: Independent | C140: 191
A141: Virginia529 College Savings Plan | B141: Independent | C141: 174
A142: Wilson Workforce Rehabilitation Center | B142: Health and Human Resources | C142: 203
A143: Wytheville Community College | B143: Higher Education | C143: 288

Sheet CENTRAL ANALYSIS (hidden)
C6: CENTRAL ANALYSIS
C9: This tab serves as a central place for all calculations for charts and tables. The yellow highlighted cells identify what the information is corresponding to throughout the workbook.
A13: Agency Profile Progress Bar | E13: EOP Summary | J13: FY Date Validation
A14: Total Steps | B14: 8 | E14: Total Steps | F14: 2 | J14: FY Year | K14: ='AGENCY PROFILE'!N46 -> 00:00:00 | L14: =IF(K17<L15,1,0) -> 1
A15: Steps Completed | B15: =COUNTA('AGENCY PROFILE'!$J$29,'AGENCY PROFILE'!$P$59:$P$65) -> 0 | C15: =B15/B14 -> 0 | E15: Steps Completed | F15: =COUNTIF(' EOP SUMMARY'!O25,"Complete")+COUNTIF(' EOP SUMMARY'!O30,"Complete") -> 0 | G15: =F15/F14 -> 0 | J15: Today | K15: =TODAY() -> 2024-02-28 | L15: =IF(YEAR(K18)<YEAR(K15),YEAR(K15),YEAR(K18)) -> 2024
A16: Steps Remaining | B16: =B14-B15 -> 8 | C16: =B16/B14 -> 1 | E16: Steps Remaining | F16: =F14-F15 -> 2 | G16: =F16/F14 -> 1 | J16: FY Year | K16: =L15 -> 2024 | L16: =L15-1 -> 2023
J17: RPT FY Year | K17: =IF(MONTH(K14)<7,YEAR(K14),YEAR(K14)+1) -> 1900
A18: Workforce Data & Strategy Progress Bar | D18: SWOT Steps | E18: Action Plan Setps | J18: 90 Days Prior | K18: =K15-90 -> 2023-11-30
A19: Total Steps | B19: =31+D19+E19 -> 35 | D19: 4 | E19: =SUM(B90+B97+B105+B113+B121+B129)+COUNTIF(F91:F123,"yes") -> 0
A20: Steps Completed | B20: =COUNTA('WORKFORCE DATA'!P33:P36)+COUNTA('WORKFORCE DATA'!P41:P44)+COUNTA('WORKFORCE DATA'!P55:P57)+COUNTA('WORKFORCE DATA'!P70:P73)+COUNTA('WORKFORCE DATA'!P78:P81)+COUNTA('WORKFORCE DATA'!P86:P89)+COUNTA('WORKFORCE DATA'!P94:P97)+COUNTA('WORKFORCE DATA'!P102:P105)+D20+E20 -> 0 | C20: =B20/B19 -> 0 | D20: =COUNTIF('AGENCY STRATEGY'!N70,"Complete")+COUNTIF('AGENCY STRATEGY'!N89,"Complete")+COUNTIF('AGENCY STRATEGY'!N108,"Complete")+COUNTIF('AGENCY STRATEGY'!N127,"Complete") -> 0 | E20: =SUM(D91,D99,D107,D115,D123,F92,F100,F108,F116,F124) -> 0
A21: Steps Remaining | B21: =B19-B20 -> 35 | C21: =B21/B19 -> 1
A23: Workforce Insights - Total Employees | J23: Hire Rate | K23: Candiate Hire | L23: Internal Mobility | M23: Vol. Sep
A24: Fiscal Year | B24: Total Classified Employees | C24: Total Employee With Disabilities | D24: Total Leader/Sups | E24: Total Executives | F24: Total Non Leaders | G24: 10% Total Employees | I24: Total Applicants | J24: =VLOOKUP('AGENCY STRATEGY'!$C$24,'CENTRAL ANALYSIS'!$A$40:$C$43,3,FALSE)/$B$25 ->  | K24: =VLOOKUP('AGENCY STRATEGY'!$C$24,'CENTRAL ANALYSIS'!$A$40:$C$43,3,FALSE)/$F$37 ->  | L24: =VLOOKUP('AGENCY STRATEGY'!$C$24,$A$54:$D$57,4,FALSE)/$B$25 ->  | M24: =VLOOKUP('AGENCY STRATEGY'!$C$24,$A$40:$F$43,6,FALSE)/$B$25 -> 
A25: ='AGENCY STRATEGY'!$C$23 -> FY23 | B25: =HLOOKUP($A$25,'AGENCY PROFILE'!$N$58:$P$65,2,FALSE) ->  | C25: =HLOOKUP($A$25,'AGENCY PROFILE'!$N$58:$P$65,3,FALSE) ->  | D25: =IF(OR('AGENCY STRATEGY'!$C$24="all",'AGENCY STRATEGY'!$C$24="Leader/Sup"),HLOOKUP($A$25,'AGENCY PROFILE'!$N$58:$P$65,4,FALSE),"") ->  | E25: =IF(OR('AGENCY STRATEGY'!$C$24="all",'AGENCY STRATEGY'!$C$24="Executive"),HLOOKUP($A$25,'AGENCY PROFILE'!$N$58:$P$65,5,FALSE),"") ->  | F25: =IF(OR('AGENCY STRATEGY'!$C$24="all",'AGENCY STRATEGY'!$C$24="Non-Leader"),(HLOOKUP($A$25,'AGENCY PROFILE'!$N$58:$P$65,3,FALSE))-(SUM(HLOOKUP($A$25,'AGENCY PROFILE'!$N$58:$P$65,4,FALSE)+HLOOKUP($A$25,'AGENCY PROFILE'!$N$58:$P$65,5,FALSE))),"") ->  | G25: =ROUNDUP(B25*0.1,0) ->  | I25: =HLOOKUP($A$25,'WORKFORCE DATA'!$N$40:$P$44,2,FALSE) ->  | J25: =VLOOKUP('AGENCY STRATEGY'!$C$24,'CENTRAL ANALYSIS'!$A$40:$C$43,3,FALSE) ->  | K25: =VLOOKUP('AGENCY STRATEGY'!$C$24,'CENTRAL ANALYSIS'!$A$40:$C$43,2,FALSE) ->  | L25: =VLOOKUP('AGENCY STRATEGY'!$C$24,$A$54:$D$57,2,FALSE) ->  | M25: =VLOOKUP('AGENCY STRATEGY'!$C$24,$A$40:$F$43,5,FALSE) -> 
A26: Percentages | L26: =VLOOKUP('AGENCY STRATEGY'!$C$24,$A$54:$D$57,3,FALSE) ->  | M26: =VLOOKUP('AGENCY STRATEGY'!$C$24,$A$40:$F$43,4,FALSE) -> 
B27: Total Classified Employees | C27: Total Employee With Disabilities | D27: Total Leader/Sups | E27: Total Executives | F27: Total Non Leaders | G27: 10% Total Employees | J27: PY Hire Rate | K27: PY Candiate Hire | L27: PY Internal Mobility | M27: PY Vol. Sep
C28: =HLOOKUP($A$25,'AGENCY PROFILE'!$N$58:$P$65,3,FALSE)/B25 ->  | D28: =D25/$B$25 ->  | E28: =E25/$B$25 ->  | G28: =10%-C28 ->  | I28: =VLOOKUP($A$25,'CENTRAL DATA'!$E$13:$G$19,3,FALSE) ->  | J28: =HLOOKUP($I$28,'WORKFORCE DATA'!$N$32:$P$36,3,FALSE)/HLOOKUP($I$28,'AGENCY PROFILE'!$N$58:$P$65,2,FALSE) ->  | K28: =HLOOKUP($I$28,'WORKFORCE DATA'!$N$32:$P$36,3,FALSE)/HLOOKUP($I$28,'WORKFORCE DATA'!$N$40:$P$44,2,FALSE) ->  | L28: =(HLOOKUP($I$28,'WORKFORCE DATA'!$N$77:$P$81,3,FALSE)+HLOOKUP($I$28,'WORKFORCE DATA'!$N$85:$P$89,3,FALSE))/HLOOKUP($I$28,'AGENCY PROFILE'!$N$58:$P$65,2,FALSE) ->  | M28: =(HLOOKUP($I$28,'WORKFORCE DATA'!$N$93:$P$97,3,FALSE)+HLOOKUP($I$28,'WORKFORCE DATA'!$N$101:$P$105,3,FALSE))/HLOOKUP($I$28,'AGENCY PROFILE'!$N$58:$P$65,2,FALSE) -> 
A29: 1st Graph Data for Total Numbers | I29: Change | J29: =IFERROR(J24-J28,"") ->  | K29: =IFERROR(K24-K28,"") ->  | O29: ▲
C30: Total Employee With Disabilities | D30: 10% Total Employees | I30: Direction | J30: =IF(J29="","",IF(J29>0,$O$29,IF(J29=0,$O$30,IF(J29<0,$O$31)))) ->  | K30: =IF(K29="","",IF(K29>0,$O$29,IF(K29=0,$O$30,IF(K29<0,$O$31)))) ->  | O30: ◄►
C31: =IFERROR(C28,0) -> 0 | D31: =IFERROR(G28,5%) -> 0.05 | I31: Combined | J31: =CONCATENATE(J30,TEXT(J29,"0.0%")) ->  | K31: =CONCATENATE(K30,TEXT(K29,"0.0%")) ->  | O31: ▼
A32: 2nd Graph Data for Total Numbers
D33: Total Leader/Sups | E33: Total Executives | F33: Total Non Leaders | G33: 10% Total Employees
D34: =IF(OR('AGENCY STRATEGY'!$C$24="all",'AGENCY STRATEGY'!$C$24="Leader/Sup"),D28,"") ->  | E34: =IF(OR('AGENCY STRATEGY'!$C$24="all",'AGENCY STRATEGY'!$C$24="Executive"),E28,"") ->  | F34: =IF(OR('AGENCY STRATEGY'!$C$24="all",'AGENCY STRATEGY'!$C$24="Non-Leader"),F28,"") ->  | G34: =G28 -> 
A35: Workforce Insights - Workforce Data (Employees with Disabilities)
A36: Fiscal Year | B36: Total Hires | C36: Total Hires Leader/Sups | D36: Total Hires Executives | E36: Hires Non Leaders | F36: Total Applicants | G36: Total Applicant Leader/Sups | H36: Total Applicant Executives | I36: Applicants Non Leaders | J36: Total Separations | K36: Total Separations Leader/Sups | L36: Total Separations Executives | M36: Separations Non Leaders | N36: Total External Transfers | O36: Total External Transfers Leader/Sups | P36: Total External Transfers Executives | Q36: External Transfers Non Leaders
A37: ='AGENCY STRATEGY'!$C$23 -> FY23 | B37: =IFERROR(HLOOKUP($A$37,'WORKFORCE DATA'!$N$32:$P$36,3,FALSE),"") ->  | C37: =IFERROR(HLOOKUP($A$37,'WORKFORCE DATA'!$N$32:$P$36,4,FALSE),"") ->  | D37: =IFERROR(HLOOKUP($A$37,'WORKFORCE DATA'!$N$32:$P$36,5,FALSE),"") ->  | E37: =IFERROR(B37-SUM(C37:D37),"") ->  | F37: =IFERROR(HLOOKUP($A$37,'WORKFORCE DATA'!$N$40:$P$44,3,FALSE),"") ->  | G37: =IFERROR(HLOOKUP($A$37,'WORKFORCE DATA'!$N$40:$P$44,4,FALSE),"") ->  | H37: =IFERROR(HLOOKUP($A$37,'WORKFORCE DATA'!$N$40:$P$44,5,FALSE),"") ->  | I37: =IFERROR(F37-SUM(G37:H37),"") ->  | J37: =IFERROR(HLOOKUP($A$37,'WORKFORCE DATA'!$N$93:$P$97,3,FALSE),"") ->  | K37: =IFERROR(HLOOKUP($A$37,'WORKFORCE DATA'!$N$93:$P$97,4,FALSE),"") ->  | L37: =IFERROR(HLOOKUP($A$37,'WORKFORCE DATA'!$N$93:$P$97,5,FALSE),"") ->  | M37: =IFERROR(J37-SUM(K37:L37),"") ->  | N37: =IFERROR(HLOOKUP($A$37,'WORKFORCE DATA'!$N$101:$P$105,3,FALSE),"") ->  | O37: =IFERROR(HLOOKUP($A$37,'WORKFORCE DATA'!$N$101:$P$105,4,FALSE),"") ->  | P37: =IFERROR(HLOOKUP($A$37,'WORKFORCE DATA'!$N$101:$P$105,5,FALSE),"") ->  | Q37: =IFERROR(N37-SUM(O37:P37),"") -> 
A38: Chart Information
B39: Applicants | C39: Hires | D39: Separations | E39: External Transfers | F39: Sum (Sep)
A40: All | B40: =F37 ->  | C40: =B37 ->  | D40: =J37 ->  | E40: =N37 ->  | F40: =SUM(D40:E40) -> 0
A41: Leader/Sup | B41: =G37 ->  | C41: =C37 ->  | D41: =K37 ->  | E41: =O37 ->  | F41: =SUM(D41:E41) -> 0
A42: Executive | B42: =H37 ->  | C42: =D37 ->  | D42: =L37 ->  | E42: =P37 ->  | F42: 0
A43: Non-Leader | B43: =I37 ->  | C43: =E37 ->  | D43: =M37 ->  | E43: =Q37 ->  | F43: 0
A44: Chart Data
A45: Applicants | B45: =IFERROR(VLOOKUP('AGENCY STRATEGY'!$C$24,$A$39:$F$43,2,FALSE),"") -> 
A46: Hires | B46: =IFERROR(VLOOKUP('AGENCY STRATEGY'!$C$24,$A$39:$F$43,3,FALSE),"") -> 
A47: Separations | B47: =IFERROR(-VLOOKUP('AGENCY STRATEGY'!$C$24,$A$39:$F$43,4,FALSE),"") -> 
A48: External Transfers | B48: =IFERROR(-VLOOKUP('AGENCY STRATEGY'!$C$24,$A$39:$F$43,5,FALSE),"") -> 
A49: Workforce Insights (Internal Mobility)
A50: Fiscal Year | B50: Total Promotions | C50: Total Promotions Leader/Sups | D50: Total Promotions Executives | E50: Promotions Non Leaders | F50: Total Internal Transfers | G50: Total Internal Transfers Leader/Sups | H50: Total Internal Transfers Executives | I50: Internal Transfers Non Leaders
A51: ='AGENCY STRATEGY'!$C$23 -> FY23 | B51: =HLOOKUP($A$37,'WORKFORCE DATA'!$N$77:$P$81,3,FALSE) ->  | C51: =HLOOKUP($A$37,'WORKFORCE DATA'!$N$77:$P$81,4,FALSE) ->  | D51: =HLOOKUP($A$37,'WORKFORCE DATA'!$N$77:$P$81,5,FALSE) ->  | E51: =B51-SUM(C51:D51) ->  | F51: =HLOOKUP($A$37,'WORKFORCE DATA'!$N$85:$P$89,3,FALSE) ->  | G51: =HLOOKUP($A$37,'WORKFORCE DATA'!$N$85:$P$89,4,FALSE) ->  | H51: =HLOOKUP($A$37,'WORKFORCE DATA'!$N$85:$P$89,5,FALSE) ->  | I51: =F51-SUM(G51:H51) -> 
A52: Chart Information
B53: Promotions | C53: Internal Transfers | D53: Sum
A54: All | B54: =B51 ->  | C54: =F51 ->  | D54: =SUM(B54:C54) -> 
A55: Leader/Sup | B55: =C51 ->  | C55: =G51 ->  | D55: =SUM(B55:C55) -> 
A56: Executive | B56: =D51 ->  | C56: =H51 -> 
A57: Non-Leader | B57: =E51 ->  | C57: =I51 -> 
A58: Chart Data
A59: Promotions | B59: =IFERROR(VLOOKUP('AGENCY STRATEGY'!$C$24,$A$54:$C$57,2,FALSE),"") -> 
A60: Internal Transfers | B60: =IFERROR(VLOOKUP('AGENCY STRATEGY'!$C$24,$A$54:$C$57,3,FALSE),"") -> 
A64: SWOT Analysis Strengths Complete Check
A65: Strengths | B65: Recruitment | C65: Retention | D65: Engagement | E65: Learning/Development
A66: Entered | B66: =IF('AGENCY STRATEGY'!E81<>"",1,0) -> 0 | C66: =IF('AGENCY STRATEGY'!H81<>"",1,0) -> 0 | D66: =IF('AGENCY STRATEGY'!K81<>"",1,0) -> 0 | E66: =IF('AGENCY STRATEGY'!N81<>"",1,0) -> 0
A67: Check Box | B67: FALSE | C67: FALSE | D67: FALSE | E67: FALSE
A68: Complete | B68: =IF(OR(B66=1,B67=TRUE),1,0) -> 0 | C68: =IF(OR(C66=1,C67=TRUE),1,0) -> 0 | D68: 0 | E68: 0
A69: SWOT Analysis Weaknesses Complete Check
A70: Strengths | B70: Recruitment | C70: Retention | D70: Engagement | E70: Learning/Development
A71: Entered | B71: =IF('AGENCY STRATEGY'!E100<>"",1,0) -> 0 | C71: =IF('AGENCY STRATEGY'!H100<>"",1,0) -> 0 | D71: =IF('AGENCY STRATEGY'!K100<>"",1,0) -> 0 | E71: =IF('AGENCY STRATEGY'!N100<>"",1,0) -> 0
A72: Check Box | B72: FALSE | C72: FALSE | D72: FALSE | E72: FALSE
A73: Complete | B73: =IF(OR(B71=1,B72=TRUE),1,0) -> 0 | C73: =IF(OR(C71=1,C72=TRUE),1,0) -> 0 | D73: =IF(OR(D71=1,D72=TRUE),1,0) -> 0 | E73: =IF(OR(E71=1,E72=TRUE),1,0) -> 0
A74: SWOT Analysis Opportunities Complete Check
A75: Strengths | B75: Recruitment | C75: Retention | D75: Engagement | E75: Learning/Development
A76: Entered | B76: =IF('AGENCY STRATEGY'!E119<>"",1,0) -> 0 | C76: =IF('AGENCY STRATEGY'!H119<>"",1,0) -> 0 | D76: =IF('AGENCY STRATEGY'!K119<>"",1,0) -> 0 | E76: =IF('AGENCY STRATEGY'!N119<>"",1,0) -> 0
A77: Check Box | B77: FALSE | C77: FALSE | D77: FALSE | E77: FALSE
A78: Complete | B78: =IF(OR(B76=1,B77=TRUE),1,0) -> 0 | C78: =IF(OR(C76=1,C77=TRUE),1,0) -> 0 | D78: =IF(OR(D76=1,D77=TRUE),1,0) -> 0 | E78: =IF(OR(E76=1,E77=TRUE),1,0) -> 0
A79: SWOT Analysis Threats Complete Check
A80: Strengths | B80: Recruitment | C80: Retention | D80: Engagement | E80: Learning/Development
A81: Entered | B81: =IF('AGENCY STRATEGY'!E138<>"",1,0) -> 0 | C81: =IF('AGENCY STRATEGY'!H138<>"",1,0) -> 0 | D81: =IF('AGENCY STRATEGY'!K138<>"",1,0) -> 0 | E81: =IF('AGENCY STRATEGY'!N138<>"",1,0) -> 0
A82: Check Box | B82: FALSE | C82: FALSE | D82: FALSE | E82: FALSE
A83: Complete | B83: =IF(OR(B81=1,B82=TRUE),1,0) -> 0 | C83: =IF(OR(C81=1,C82=TRUE),1,0) -> 0 | D83: =IF(OR(D81=1,D82=TRUE),1,0) -> 0 | E83: =IF(OR(E81=1,E82=TRUE),1,0) -> 0
A85: Conditional Formatting for Action Plan Buttons | G85: Remove Objective | J85: Progress Update | M85: Remove Update
A86: Add Objective | D86: Remove Last Item | G86: Remove Last Objective | J86: Add Progress Update | M86: Remove Progress Update
A89: Agency Strategy Action Item Visisblity & Complete | F89: Progress Update | G89: =IF('AGENCY STRATEGY'!$F$160='IMPORTED DATA'!$O$71,1,0) -> 1
A90: Total Objectives | B90: =IF('AGENCY STRATEGY'!$P$396="",C90,'AGENCY STRATEGY'!$P$396) -> 0 | C90: 0
A91: Objective 1 | B91: =IF(AND($B$90>=1,'AGENCY STRATEGY'!F160<>""),1,0) -> 0 | C91: Total | D91: =B91+SUM(B92:B96) -> 0 | E91: =IF(AND($B$90>=1,D91=B97+1),1,0) -> 0 | F91: =IF('AGENCY STRATEGY'!$P$402="",G91,'AGENCY STRATEGY'!$P$402) -> 0
A92: Action 1 | B92: =IF('AGENCY STRATEGY'!$H$166<>"",1,0) -> 0 | D92: Add Action Item | F92: =IF(AND('AGENCY STRATEGY'!H189<>"",'AGENCY STRATEGY'!H190<>""),1,0) -> 0
A93: Action 2 | B93: =IF('AGENCY STRATEGY'!$H$169<>"",1,0) -> 0
A94: Action 3 | B94: =IF('AGENCY STRATEGY'!$H$172<>"",1,0) -> 0
A95: Action 4 | B95: =IF('AGENCY STRATEGY'!$H$175<>"",1,0) -> 0
A96: Action 5 | B96: =IF('AGENCY STRATEGY'!$H$178<>"",1,0) -> 0
A97: Total Action Items | B97: =IF('AGENCY STRATEGY'!$P$397="",C97,'AGENCY STRATEGY'!$P$397) -> 0 | C97: 0 | F97: Progress Update | G97: =IF('AGENCY STRATEGY'!$F$206='IMPORTED DATA'!$O$77,1,0) -> 1
A99: Objective 1 | B99: =IF(AND($B$90>1,'AGENCY STRATEGY'!F206<>""),1,0) -> 0 | C99: Total | D99: =B99+SUM(B100:B104) -> 0 | E99: =IF(AND($B$90>=1,D99=B105+1),1,0) -> 0 | F99: =IF('AGENCY STRATEGY'!$P$403="",G99,'AGENCY STRATEGY'!$P$403) -> 0
A100: Action 1 | B100: =IF('AGENCY STRATEGY'!$H$212<>"",1,0) -> 0 | D100: Add Action Item | F100: =IF(AND('AGENCY STRATEGY'!H235<>"",'AGENCY STRATEGY'!H236<>""),1,0) -> 0
A101: Action 2 | B101: =IF('AGENCY STRATEGY'!$H$215<>"",1,0) -> 0
A102: Action 3 | B102: =IF('AGENCY STRATEGY'!$H$218<>"",1,0) -> 0
A103: Action 4 | B103: =IF('AGENCY STRATEGY'!$H$221<>"",1,0) -> 0
A104: Action 5 | B104: =IF('AGENCY STRATEGY'!$H$224<>"",1,0) -> 0
A105: Total Action Items | B105: =IF('AGENCY STRATEGY'!$P$398="",C105,'AGENCY STRATEGY'!$P$398) -> 0 | C105: 0 | F105: Progress Update | G105: =IF('AGENCY STRATEGY'!$F$252='IMPORTED DATA'!$O$83,1,0) -> 1
A107: Objective 1 | B107: =IF(AND($B$90>1,'AGENCY STRATEGY'!F252<>""),1,0) -> 0 | C107: Total | D107: =B107+SUM(B108:B112) -> 0 | E107: =IF(AND($B$90>=1,D107=B113+1),1,0) -> 0 | F107: =IF('AGENCY STRATEGY'!$P$404="",G107,'AGENCY STRATEGY'!$P$404) -> 0
A108: Action 1 | B108: =IF('AGENCY STRATEGY'!$H$258<>"",1,0) -> 0 | D108: Add Action Item | F108: =IF(AND('AGENCY STRATEGY'!H281<>"",'AGENCY STRATEGY'!H282<>""),1,0) -> 0
A109: Action 2 | B109: =IF('AGENCY STRATEGY'!$H$261<>"",1,0) -> 0
A110: Action 3 | B110: =IF('AGENCY STRATEGY'!$H$264<>"",1,0) -> 0
A111: Action 4 | B111: =IF('AGENCY STRATEGY'!$H$267<>"",1,0) -> 0
A112: Action 5 | B112: =IF('AGENCY STRATEGY'!$H$270<>"",1,0) -> 0
A113: Total Action Items | B113: =IF('AGENCY STRATEGY'!$P$399="",C113,'AGENCY STRATEGY'!$P$399) -> 0 | C113: 0 | F113: Progress Update | G113: =IF('AGENCY STRATEGY'!$F$298='IMPORTED DATA'!$O$89,1,0) -> 1
A115: Objective 1 | B115: =IF(AND($B$90>1,'AGENCY STRATEGY'!F298<>""),1,0) -> 0 | C115: Total | D115: =B115+SUM(B116:B120) -> 0 | E115: =IF(AND($B$90>=1,D115=B121+1),1,0) -> 0 | F115: =IF('AGENCY STRATEGY'!$P$405="",G115,'AGENCY STRATEGY'!$P$405) -> 0
A116: Action 1 | B116: =IF('AGENCY STRATEGY'!$H$304<>"",1,0) -> 0 | D116: Add Action Item | F116: =IF(AND('AGENCY STRATEGY'!H327<>"",'AGENCY STRATEGY'!H328<>""),1,0) -> 0
A117: Action 2 | B117: =IF('AGENCY STRATEGY'!$H$307<>"",1,0) -> 0
A118: Action 3 | B118: =IF('AGENCY STRATEGY'!$H$310<>"",1,0) -> 0
A119: Action 4 | B119: =IF('AGENCY STRATEGY'!$H$313<>"",1,0) -> 0
A120: Action 5 | B120: =IF('AGENCY STRATEGY'!$H$316<>"",1,0) -> 0
A121: Total Action Items | B121: =IF('AGENCY STRATEGY'!$P$400="",C121,'AGENCY STRATEGY'!$P$400) -> 0 | C121: 0 | F121: Progress Update | G121: =IF('AGENCY STRATEGY'!$F$344='IMPORTED DATA'!$O$95,1,0) -> 1
A123: Objective 1 | B123: =IF(AND($B$90>1,'AGENCY STRATEGY'!F344<>""),1,0) -> 0 | C123: Total | D123: =B123+SUM(B124:B128) -> 0 | E123: =IF(AND($B$90>=1,D123=B129+1),1,0) -> 0 | F123: =IF('AGENCY STRATEGY'!$P$406="",G123,'AGENCY STRATEGY'!$P$406) -> 0
A124: Action 1 | B124: =IF('AGENCY STRATEGY'!$H$350<>"",1,0) -> 0 | D124: Add Action Item | F124: =IF(AND('AGENCY STRATEGY'!H373<>"",'AGENCY STRATEGY'!H374<>""),1,0) -> 0
A125: Action 2 | B125: =IF('AGENCY STRATEGY'!$H$353<>"",1,0) -> 0
A126: Action 3 | B126: =IF('AGENCY STRATEGY'!$H$356<>"",1,0) -> 0
A127: Action 4 | B127: =IF('AGENCY STRATEGY'!$H$359<>"",1,0) -> 0
A128: Action 5 | B128: =IF('AGENCY STRATEGY'!$H$362<>"",1,0) -> 0
A129: Total Action Items | B129: =IF('AGENCY STRATEGY'!$P$401="",C129,'AGENCY STRATEGY'!$P$401) -> 0 | C129: 0
K132: Color Counts
A133: Speedometere Grapch Outline | E133: % of Workforce | F133: Red | G133: Yellow | H133: Green | K133: Red | L133: =COUNTIF($C$133:$C$253,K133) -> 17
A134: 1 | B134: 1 | C134: =IF(F134<>"",F134,IF(G134<>"",G134,C135)) -> Red | D134: =A134/50 -> 0.02 | E134: =D134*0.1 -> 0.002 | F134: =IF(E134<=' EOP SUMMARY'!$C$62,"Red","") -> Red | G134: =IF(E134<=' EOP SUMMARY'!$C$66,"Yellow","") -> Yellow | H134: =IF(E134>=' EOP SUMMARY'!$C$70,"Green","") ->  | K134: Yellow | L134: =COUNTIF($C$133:$C$253,K134) -> 8
A135: 2 | B135: 1 | C135: Red | D135: =A135/50 -> 0.04 | E135: =D135*0.1 -> 0.004 | F135: =IF(E135<=' EOP SUMMARY'!$C$62,"Red","") -> Red | G135: =IF(E135<=' EOP SUMMARY'!$C$66,"Yellow","") -> Yellow | H135: =IF(E135>=' EOP SUMMARY'!$C$70,"Green","") ->  | K135: Green | L135: 25
A136: 3 | B136: 1 | C136: Red | D136: 0.06 | E136: 0.006 | F136: =IF(E136<=' EOP SUMMARY'!$C$62,"Red","") -> Red | G136: =IF(E136<=' EOP SUMMARY'!$C$66,"Yellow","") -> Yellow | H136: =IF(E136>=' EOP SUMMARY'!$C$70,"Green","") ->  | K136: White | L136: 22
A137: 4 | B137: 1 | C137: Red | D137: 0.08 | E137: 0.008 | F137: =IF(E137<=' EOP SUMMARY'!$C$62,"Red","") -> Red | G137: =IF(E137<=' EOP SUMMARY'!$C$66,"Yellow","") -> Yellow | H137: =IF(E137>=' EOP SUMMARY'!$C$70,"Green","") -> 
A138: 5 | B138: 1 | C138: Red | D138: 0.1 | E138: 0.01 | F138: =IF(E138<=' EOP SUMMARY'!$C$62,"Red","") -> Red | G138: =IF(E138<=' EOP SUMMARY'!$C$66,"Yellow","") -> Yellow | H138: =IF(E138>=' EOP SUMMARY'!$C$70,"Green","") -> 
A139: 6 | B139: 1 | C139: Red | D139: 0.12 | E139: 0.012 | F139: =IF(E139<=' EOP SUMMARY'!$C$62,"Red","") -> Red | G139: =IF(E139<=' EOP SUMMARY'!$C$66,"Yellow","") -> Yellow | H139: =IF(E139>=' EOP SUMMARY'!$C$70,"Green","") -> 
A140: 7 | B140: 1 | C140: Red | D140: 0.14 | E140: 0.014 | F140: =IF(E140<=' EOP SUMMARY'!$C$62,"Red","") -> Red | G140: =IF(E140<=' EOP SUMMARY'!$C$66,"Yellow","") -> Yellow | H140: =IF(E140>=' EOP SUMMARY'!$C$70,"Green","") -> 
A141: 8 | B141: 1 | C141: Red | D141: 0.16 | E141: 0.016 | F141: =IF(E141<=' EOP SUMMARY'!$C$62,"Red","") -> Red | G141: =IF(E141<=' EOP SUMMARY'!$C$66,"Yellow","") -> Yellow | H141: =IF(E141>=' EOP SUMMARY'!$C$70,"Green","") -> 
A142: 9 | B142: 1 | C142: Red | D142: 0.18 | E142: 0.018 | F142: =IF(E142<=' EOP SUMMARY'!$C$62,"Red","") -> Red | G142: =IF(E142<=' EOP SUMMARY'!$C$66,"Yellow","") -> Yellow | H142: =IF(E142>=' EOP SUMMARY'!$C$70,"Green","") -> 
A143: 10 | B143: 1 | C143: Red | D143: 0.2 | E143: 0.02 | F143: =IF(E143<=' EOP SUMMARY'!$C$62,"Red","") -> Red | G143: =IF(E143<=' EOP SUMMARY'!$C$66,"Yellow","") -> Yellow | H143: =IF(E143>=' EOP SUMMARY'!$C$70,"Green","") -> 
A144: 11 | B144: 1 | C144: Red | D144: 0.22 | E144: 0.022 | F144: =IF(E144<=' EOP SUMMARY'!$C$62,"Red","") -> Red | G144: =IF(E144<=' EOP SUMMARY'!$C$66,"Yellow","") -> Yellow | H144: =IF(E144>=' EOP SUMMARY'!$C$70,"Green","") -> 
A145: 12 | B145: 1 | C145: Red | D145: 0.24 | E145: 0.024 | F145: =IF(E145<=' EOP SUMMARY'!$C$62,"Red","") -> Red | G145: =IF(E145<=' EOP SUMMARY'!$C$66,"Yellow","") -> Yellow | H145: =IF(E145>=' EOP SUMMARY'!$C$70,"Green","") -> 
A146: 13 | B146: 1 | C146: Red | D146: 0.26 | E146: 0.026 | F146: =IF(E146<=' EOP SUMMARY'!$C$62,"Red","") -> Red | G146: =IF(E146<=' EOP SUMMARY'!$C$66,"Yellow","") -> Yellow | H146: =IF(E146>=' EOP SUMMARY'!$C$70,"Green","") -> 
A147: 14 | B147: 1 | C147: Red | D147: 0.28 | E147: 0.028 | F147: =IF(E147<=' EOP SUMMARY'!$C$62,"Red","") -> Red | G147: =IF(E147<=' EOP SUMMARY'!$C$66,"Yellow","") -> Yellow | H147: =IF(E147>=' EOP SUMMARY'!$C$70,"Green","") -> 
A148: 15 | B148: 1 | C148: Red | D148: 0.3 | E148: 0.03 | F148: =IF(E148<=' EOP SUMMARY'!$C$62,"Red","") -> Red | G148: =IF(E148<=' EOP SUMMARY'!$C$66,"Yellow","") -> Yellow | H148: =IF(E148>=' EOP SUMMARY'!$C$70,"Green","") -> 
A149: 16 | B149: 1 | C149: Red | D149: 0.32 | E149: 0.032 | F149: =IF(E149<=' EOP SUMMARY'!$C$62,"Red","") -> Red | G149: =IF(E149<=' EOP SUMMARY'!$C$66,"Yellow","") -> Yellow | H149: =IF(E149>=' EOP SUMMARY'!$C$70,"Green","") -> 
A150: 17 | B150: 1 | C150: Red | D150: 0.34 | E150: 0.034 | F150: =IF(E150<=' EOP SUMMARY'!$C$62,"Red","") -> Red | G150: =IF(E150<=' EOP SUMMARY'!$C$66,"Yellow","") -> Yellow | H150: =IF(E150>=' EOP SUMMARY'!$C$70,"Green","") -> 
A151: 18 | B151: 1 | C151: Yellow | D151: 0.36 | E151: 0.036 | F151: =IF(E151<=' EOP SUMMARY'!$C$62,"Red","") ->  | G151: =IF(E151<=' EOP SUMMARY'!$C$66,"Yellow","") -> Yellow | H151: =IF(E151>=' EOP SUMMARY'!$C$70,"Green","") -> 
A152: 19 | B152: 1 | C152: Yellow | D152: 0.38 | E152: 0.038 | F152: =IF(E152<=' EOP SUMMARY'!$C$62,"Red","") ->  | G152: =IF(E152<=' EOP SUMMARY'!$C$66,"Yellow","") -> Yellow | H152: =IF(E152>=' EOP SUMMARY'!$C$70,"Green","") -> 
A153: 20 | B153: 1 | C153: Yellow | D153: 0.4 | E153: 0.04 | F153: =IF(E153<=' EOP SUMMARY'!$C$62,"Red","") ->  | G153: =IF(E153<=' EOP SUMMARY'!$C$66,"Yellow","") -> Yellow | H153: =IF(E153>=' EOP SUMMARY'!$C$70,"Green","") -> 
A154: 21 | B154: 1 | C154: Yellow | D154: 0.42 | E154: 0.042 | F154: =IF(E154<=' EOP SUMMARY'!$C$62,"Red","") ->  | G154: =IF(E154<=' EOP SUMMARY'!$C$66,"Yellow","") -> Yellow | H154: =IF(E154>=' EOP SUMMARY'!$C$70,"Green","") -> 
A155: 22 | B155: 1 | C155: Yellow | D155: 0.44 | E155: 0.044 | F155: =IF(E155<=' EOP SUMMARY'!$C$62,"Red","") ->  | G155: =IF(E155<=' EOP SUMMARY'!$C$66,"Yellow","") -> Yellow | H155: =IF(E155>=' EOP SUMMARY'!$C$70,"Green","") -> 
A156: 23 | B156: 1 | C156: Yellow | D156: 0.46 | E156: 0.046 | F156: =IF(E156<=' EOP SUMMARY'!$C$62,"Red","") ->  | G156: =IF(E156<=' EOP SUMMARY'!$C$66,"Yellow","") -> Yellow | H156: =IF(E156>=' EOP SUMMARY'!$C$70,"Green","") -> 
A157: 24 | B157: 1 | C157: Yellow | D157: 0.48 | E157: 0.048 | F157: =IF(E157<=' EOP SUMMARY'!$C$62,"Red","") ->  | G157: =IF(E157<=' EOP SUMMARY'!$C$66,"Yellow","") -> Yellow | H157: =IF(E157>=' EOP SUMMARY'!$C$70,"Green","") -> 
A158: 25 | B158: 1 | C158: Yellow | D158: 0.5 | E158: 0.05 | F158: =IF(E158<=' EOP SUMMARY'!$C$62,"Red","") ->  | G158: =IF(E158<=' EOP SUMMARY'!$C$66,"Yellow","") -> Yellow | H158: =IF(E158>=' EOP SUMMARY'!$C$70,"Green","") -> Green
A159: 26 | B159: 1 | C159: Green | D159: 0.52 | E159: 0.052 | F159: =IF(E159<=' EOP SUMMARY'!$C$62,"Red","") ->  | G159: =IF(E159<=' EOP SUMMARY'!$C$66,"Yellow","") ->  | H159: =IF(E159>=' EOP SUMMARY'!$C$70,"Green","") -> Green
A160: 27 | B160: 1 | C160: Green | D160: 0.54 | E160: 0.054 | F160: =IF(E160<=' EOP SUMMARY'!$C$62,"Red","") ->  | G160: =IF(E160<=' EOP SUMMARY'!$C$66,"Yellow","") ->  | H160: =IF(E160>=' EOP SUMMARY'!$C$70,"Green","") -> Green
A161: 28 | B161: 1 | C161: Green | D161: 0.56 | E161: 0.056 | F161: =IF(E161<=' EOP SUMMARY'!$C$62,"Red","") ->  | G161: =IF(E161<=' EOP SUMMARY'!$C$66,"Yellow","") ->  | H161: =IF(E161>=' EOP SUMMARY'!$C$70,"Green","") -> Green
A162: 29 | B162: 1 | C162: Green | D162: 0.58 | E162: 0.058 | F162: =IF(E162<=' EOP SUMMARY'!$C$62,"Red","") ->  | G162: =IF(E162<=' EOP SUMMARY'!$C$66,"Yellow","") ->  | H162: =IF(E162>=' EOP SUMMARY'!$C$70,"Green","") -> Green
A163: 30 | B163: 1 | C163: Green | D163: 0.6 | E163: 0.06 | F163: =IF(E163<=' EOP SUMMARY'!$C$62,"Red","") ->  | G163: =IF(E163<=' EOP SUMMARY'!$C$66,"Yellow","") ->  | H163: =IF(E163>=' EOP SUMMARY'!$C$70,"Green","") -> Green
A164: 31 | B164: 1 | C164: Green | D164: 0.62 | E164: 0.062 | F164: =IF(E164<=' EOP SUMMARY'!$C$62,"Red","") ->  | G164: =IF(E164<=' EOP SUMMARY'!$C$66,"Yellow","") ->  | H164: =IF(E164>=' EOP SUMMARY'!$C$70,"Green","") -> Green
A165: 32 | B165: 1 | C165: Green | D165: 0.64 | E165: 0.064 | F165: =IF(E165<=' EOP SUMMARY'!$C$62,"Red","") ->  | G165: =IF(E165<=' EOP SUMMARY'!$C$66,"Yellow","") ->  | H165: =IF(E165>=' EOP SUMMARY'!$C$70,"Green","") -> Green
A166: 33 | B166: 1 | C166: Green | D166: 0.66 | E166: 0.066 | F166: =IF(E166<=' EOP SUMMARY'!$C$62,"Red","") ->  | G166: =IF(E166<=' EOP SUMMARY'!$C$66,"Yellow","") ->  | H166: =IF(E166>=' EOP SUMMARY'!$C$70,"Green","") -> Green
A167: 34 | B167: 1 | C167: Green | D167: 0.68 | E167: 0.068 | F167: =IF(E167<=' EOP SUMMARY'!$C$62,"Red","") ->  | G167: =IF(E167<=' EOP SUMMARY'!$C$66,"Yellow","") ->  | H167: =IF(E167>=' EOP SUMMARY'!$C$70,"Green","") -> Green
A168: 35 | B168: 1 | C168: Green | D168: 0.7 | E168: 0.07 | F168: =IF(E168<=' EOP SUMMARY'!$C$62,"Red","") ->  | G168: =IF(E168<=' EOP SUMMARY'!$C$66,"Yellow","") ->  | H168: =IF(E168>=' EOP SUMMARY'!$C$70,"Green","") -> Green
A169: 36 | B169: 1 | C169: Green | D169: 0.72 | E169: 0.072 | F169: =IF(E169<=' EOP SUMMARY'!$C$62,"Red","") ->  | G169: =IF(E169<=' EOP SUMMARY'!$C$66,"Yellow","") ->  | H169: =IF(E169>=' EOP SUMMARY'!$C$70,"Green","") -> Green
A170: 37 | B170: 1 | C170: Green | D170: 0.74 | E170: 0.074 | F170: =IF(E170<=' EOP SUMMARY'!$C$62,"Red","") ->  | G170: =IF(E170<=' EOP SUMMARY'!$C$66,"Yellow","") ->  | H170: =IF(E170>=' EOP SUMMARY'!$C$70,"Green","") -> Green
A171: 38 | B171: 1 | C171: Green | D171: 0.76 | E171: 0.076 | F171: =IF(E171<=' EOP SUMMARY'!$C$62,"Red","") ->  | G171: =IF(E171<=' EOP SUMMARY'!$C$66,"Yellow","") ->  | H171: =IF(E171>=' EOP SUMMARY'!$C$70,"Green","") -> Green
A172: 39 | B172: 1 | C172: Green | D172: 0.78 | E172: 0.078 | F172: =IF(E172<=' EOP SUMMARY'!$C$62,"Red","") ->  | G172: =IF(E172<=' EOP SUMMARY'!$C$66,"Yellow","") ->  | H172: =IF(E172>=' EOP SUMMARY'!$C$70,"Green","") -> Green
A173: 40 | B173: 1 | C173: Green | D173: 0.8 | E173: 0.08 | F173: =IF(E173<=' EOP SUMMARY'!$C$62,"Red","") ->  | G173: =IF(E173<=' EOP SUMMARY'!$C$66,"Yellow","") ->  | H173: =IF(E173>=' EOP SUMMARY'!$C$70,"Green","") -> Green
A174: 41 | B174: 1 | C174: Green | D174: 0.82 | E174: 0.082 | F174: =IF(E174<=' EOP SUMMARY'!$C$62,"Red","") ->  | G174: =IF(E174<=' EOP SUMMARY'!$C$66,"Yellow","") ->  | H174: =IF(E174>=' EOP SUMMARY'!$C$70,"Green","") -> Green
A175: 42 | B175: 1 | C175: Green | D175: 0.84 | E175: 0.084 | F175: =IF(E175<=' EOP SUMMARY'!$C$62,"Red","") ->  | G175: =IF(E175<=' EOP SUMMARY'!$C$66,"Yellow","") ->  | H175: =IF(E175>=' EOP SUMMARY'!$C$70,"Green","") -> Green
A176: 43 | B176: 1 | C176: Green | D176: 0.86 | E176: 0.086 | F176: =IF(E176<=' EOP SUMMARY'!$C$62,"Red","") ->  | G176: =IF(E176<=' EOP SUMMARY'!$C$66,"Yellow","") ->  | H176: =IF(E176>=' EOP SUMMARY'!$C$70,"Green","") -> Green
A177: 44 | B177: 1 | C177: Green | D177: 0.88 | E177: 0.088 | F177: =IF(E177<=' EOP SUMMARY'!$C$62,"Red","") ->  | G177: =IF(E177<=' EOP SUMMARY'!$C$66,"Yellow","") ->  | H177: =IF(E177>=' EOP SUMMARY'!$C$70,"Green","") -> Green
A178: 45 | B178: 1 | C178: Green | D178: 0.9 | E178: 0.09 | F178: =IF(E178<=' EOP SUMMARY'!$C$62,"Red","") ->  | G178: =IF(E178<=' EOP SUMMARY'!$C$66,"Yellow","") ->  | H178: =IF(E178>=' EOP SUMMARY'!$C$70,"Green","") -> Green
A179: 46 | B179: 1 | C179: Green | D179: 0.92 | E179: 0.092 | F179: =IF(E179<=' EOP SUMMARY'!$C$62,"Red","") ->  | G179: =IF(E179<=' EOP SUMMARY'!$C$66,"Yellow","") ->  | H179: =IF(E179>=' EOP SUMMARY'!$C$70,"Green","") -> Green
A180: 47 | B180: 1 | C180: Green | D180: 0.94 | E180: 0.094 | F180: =IF(E180<=' EOP SUMMARY'!$C$62,"Red","") ->  | G180: =IF(E180<=' EOP SUMMARY'!$C$66,"Yellow","") ->  | H180: =IF(E180>=' EOP SUMMARY'!$C$70,"Green","") -> Green
A181: 48 | B181: 1 | C181: Green | D181: 0.96 | E181: 0.096 | F181: =IF(E181<=' EOP SUMMARY'!$C$62,"Red","") ->  | G181: =IF(E181<=' EOP SUMMARY'!$C$66,"Yellow","") ->  | H181: =IF(E181>=' EOP SUMMARY'!$C$70,"Green","") -> Green
A182: 49 | B182: 1 | C182: Green | D182: 0.98 | E182: 0.098 | F182: =IF(E182<=' EOP SUMMARY'!$C$62,"Red","") ->  | G182: =IF(E182<=' EOP SUMMARY'!$C$66,"Yellow","") ->  | H182: =IF(E182>=' EOP SUMMARY'!$C$70,"Green","") -> Green
A183: 50 | B183: 1 | C183: Green | D183: 1 | E183: 0.1 | F183: =IF(E183<=' EOP SUMMARY'!$C$62,"Red","") ->  | G183: =IF(E183<=' EOP SUMMARY'!$C$66,"Yellow","") ->  | H183: =IF(E183>=' EOP SUMMARY'!$C$70,"Green","") -> Green
A184: 51 | B184: 1 | C184: White | D184: =A184/50 -> 1.02 | E184: 0.102 | F184: =IF(E184<=' EOP SUMMARY'!$C$62,"Red","") ->  | G184: =IF(E184<=' EOP SUMMARY'!$C$66,"Yellow","") ->  | H184: =IF(E184>=' EOP SUMMARY'!$C$70,"Green","") -> Green
A185: 52 | B185: 1 | C185: White | D185: 1.04 | E185: 0.104 | F185: =IF(E185<=' EOP SUMMARY'!$C$62,"Red","") ->  | G185: =IF(E185<=' EOP SUMMARY'!$C$66,"Yellow","") ->  | H185: =IF(E185>=' EOP SUMMARY'!$C$70,"Green","") -> Green
A186: 53 | B186: 1 | C186: White | D186: 1.06 | E186: 0.106 | F186: =IF(E186<=' EOP SUMMARY'!$C$62,"Red","") ->  | G186: =IF(E186<=' EOP SUMMARY'!$C$66,"Yellow","") ->  | H186: =IF(E186>=' EOP SUMMARY'!$C$70,"Green","") -> Green
A187: 54 | B187: 1 | C187: White | D187: 1.08 | E187: 0.108 | F187: =IF(E187<=' EOP SUMMARY'!$C$62,"Red","") ->  | G187: =IF(E187<=' EOP SUMMARY'!$C$66,"Yellow","") ->  | H187: =IF(E187>=' EOP SUMMARY'!$C$70,"Green","") -> Green
A188: 55 | B188: 1 | C188: White | D188: 1.1 | E188: 0.11 | F188: =IF(E188<=' EOP SUMMARY'!$C$62,"Red","") ->  | G188: =IF(E188<=' EOP SUMMARY'!$C$66,"Yellow","") ->  | H188: =IF(E188>=' EOP SUMMARY'!$C$70,"Green","") -> Green
B189: 1 | C189: White | H189: =IF(E189>=' EOP SUMMARY'!$C$70,"Green","") -> 
B190: 1 | C190: White
B191: 1 | C191: White
B192: 1 | C192: White
B193: 1 | C193: White
B194: 1 | C194: White
B195: 1 | C195: White
B196: 1 | C196: White
B197: 1 | C197: White
B198: 1 | C198: White
B199: 1 | C199: White
B200: 1 | C200: White
B201: 1 | C201: White
B202: 1 | C202: White
B203: 1 | C203: White
B204: 1 | C204: White
B205: 1 | C205: White | O205: ▲
O206: ◄►
O207: ▼
A209: Report Metrics | D209: Speedometer Line Chart | K209: Percent Labels | N209: Report Metrics | O209: PY | P209: Change | Q209: Statement
A210: Toteal Employees | B210: ='AGENCY PROFILE'!$P$59 -> 0 | D210: Total Employees | E210: Total Employees with Disabilities | F210: Percentage | K210: Less Than | L210: =' EOP SUMMARY'!$C$62 -> 0.035
A211: Total Employees with Disabilities | B211: ='AGENCY PROFILE'!$P$60 -> 0 | D211: =B210 -> 0 | E211: =B211 -> 0 | F211: =E211/D211 ->  | G211: =IF(F211>=10%,10%,F211) ->  | H211: =0.1-G211 ->  | I211: 0.11 | K211: To | L211: =L212-0.001 -> 0.049 | M211: =L210+0.001 -> 0.036 | N211: Total Employees with Disabilities | O211: ='AGENCY PROFILE'!$O$60 -> 0 | P211: =B211-O211 -> 0 | Q211: =IF(P211>0,CONCATENATE($O$205,ABS(P211)),IF(P211=0,CONCATENATE($O$206,ABS(P211)),IF(P211<0,CONCATENATE($O$207,ABS(P211)),""))) -> ◄►0
A212: Percent with Disabilities | B212: =B211/B210 ->  | D212: Chart Data | K212: Greater Than | L212: =' EOP SUMMARY'!$C$66 -> 0.05
A213: Total In Leader/Sup Role | B213: ='AGENCY PROFILE'!P61 -> 0 | D213: Overall | E213: % Employees with Disabilities | F213: Line Percent | G213: Remaining Percent | N213: Total In Leader/Sup Role | O213: ='AGENCY PROFILE'!O61 -> 0 | P213: =B213-O213 -> 0 | Q213: =IF(P213>0,CONCATENATE($O$205,ABS(P213)),IF(P213=0,CONCATENATE($O$206,ABS(P213)),IF(P213<0,CONCATENATE($O$207,ABS(P213)),""))) -> ◄►0
A214: Total In Executive Role | B214: ='AGENCY PROFILE'!P62 -> 0 | D214: 0.045 | E214: =G211 ->  | F214: 0.0001 | G214: =H211 ->  | N214: Total In Executive Role | O214: ='AGENCY PROFILE'!O62 -> 0 | P214: 0 | Q214: =IF(P214>0,CONCATENATE($O$205,ABS(P214)),IF(P214=0,CONCATENATE($O$206,ABS(P214)),IF(P214<0,CONCATENATE($O$207,ABS(P214)),""))) -> ◄►0
A215: Total Veterans with Disabilities | B215: ='AGENCY PROFILE'!P63 -> 0 | N215: Total Veterans with Disabilities | O215: ='AGENCY PROFILE'!O63 -> 0 | P215: 0 | Q215: =IF(P215>0,CONCATENATE($O$205,ABS(P215)),IF(P215=0,CONCATENATE($O$206,ABS(P215)),IF(P215<0,CONCATENATE($O$207,ABS(P215)),""))) -> ◄►0
A218: Org Entry Metrics | C218: Percentages | D218: Negative | F218: =CONCATENATE("FY",RIGHT('DHRM ADMIN'!$P$15,2)-1) -> FY-1 | G218: =CONCATENATE("FY",RIGHT('DHRM ADMIN'!$P$15,2)) -> FY00 | H218: Change | I218: Label
A219: Total Hires | B219: ='WORKFORCE DATA'!P33 -> 0 | E219: Total Hires | F219: ='WORKFORCE DATA'!O33 -> 0 | G219: =B219 -> 0 | H219: =G219-F219 -> 0 | I219: =IF(H219>0,CONCATENATE($O$205,ABS(H219)),IF(H219=0,CONCATENATE($O$206,ABS(H219)),IF(H219<0,CONCATENATE($O$207,ABS(H219)),""))) -> ◄►0
A220: Hires with Disabilities | B220: ='WORKFORCE DATA'!P34 -> 0 | C220: =(B220/B219) ->  | D220: =1-C220 ->  | E220: Hires with Disabilities | F220: ='WORKFORCE DATA'!O34 -> 0 | G220: =B220 -> 0 | H220: =G220-F220 -> 0 | I220: =IF(H220>0,CONCATENATE($O$205,ABS(H220)),IF(H220=0,CONCATENATE($O$206,ABS(H220)),IF(H220<0,CONCATENATE($O$207,ABS(H220)),""))) -> ◄►0
A221: Total Applicants | B221: ='WORKFORCE DATA'!P41 -> 0 | E221: Total Applicants | F221: ='WORKFORCE DATA'!O41 -> 0 | G221: 0 | H221: 0 | I221: ◄►0
A222: Applicants with Disabilities | B222: ='WORKFORCE DATA'!P42 -> 0 | C222: =B222/B221 ->  | D222: =1-C222 ->  | E222: Applicants with Disabilities | F222: ='WORKFORCE DATA'!O42 -> 0 | G222: 0 | H222: 0 | I222: ◄►0
A224: Org Mobility Metrics | C224: Percentages | D224: Negative | F224: =CONCATENATE("FY",RIGHT('DHRM ADMIN'!$P$15,2)-1) -> FY-1 | G224: =CONCATENATE("FY",RIGHT('DHRM ADMIN'!$P$15,2)) -> FY00 | H224: Change | I224: Label
A225: Total Internal Transfers | B225: ='WORKFORCE DATA'!P86 -> 0 | E225: Internal Transfers | F225: ='WORKFORCE DATA'!O86 -> 0 | G225: =B225 -> 0 | H225: =G225-F225 -> 0 | I225: =IF(H225>0,CONCATENATE($O$205,ABS(H225)),IF(H225=0,CONCATENATE($O$206,ABS(H225)),IF(H225<0,CONCATENATE($O$207,ABS(H225)),""))) -> ◄►0
A226: Internal Transfers with Disabilities | B226: ='WORKFORCE DATA'!P87 -> 0 | C226: =(B226/B225) ->  | D226: =1-C226 ->  | E226: Internal Transfers with Disabilities | F226: ='WORKFORCE DATA'!O87 -> 0 | G226: =B226 -> 0 | H226: =G226-F226 -> 0 | I226: =IF(H226>0,CONCATENATE($O$205,ABS(H226)),IF(H226=0,CONCATENATE($O$206,ABS(H226)),IF(H226<0,CONCATENATE($O$207,ABS(H226)),""))) -> ◄►0
A227: Total Promotions | B227: ='WORKFORCE DATA'!P78 -> 0 | E227: Promotions | F227: ='WORKFORCE DATA'!O78 -> 0 | G227: 0 | H227: 0 | I227: ◄►0
... 31 more rows

Sheet DHRM ADMIN (hidden)
C6: DHRM ADMIN
C9: The DHRM Admin tab is for annual updates, such as changes to Fiscal Years, and tracks the maintenance of the template versions.
B12: File Maintenance
O15: To update the Fiscal Year references throughout the workbook, enter the fiscal year of the reporting period: | P15: ='CENTRAL ANALYSIS'!K17 -> 1900
O16: To change the number of years in the workforce insights, how many prior years should this template include (MAX OF 5): | P16: 2
B19: Version Notes
C22: Version Number | D22: Version Notes | O22: Effective Date
C24: Version 1.0 | D24: Initial Release to Agencies in Feb. 2024 | O24: 2024-02-09
C26: Version 1.1 | D26: Added Data Validation to the FY Data, to only look at current FY and Future | O26: 2024-02-13

Sheet IMPORTED DATA (hidden)
C6: IMPORTED DATA | T6: TRANSFORMED DATA TO COPY
M12: Prior Versions of this Template
M13: Fiscal Year
C14: =IF(D14="",COUNTIF(O71,"<>0")+COUNTIF(O77,"<>0")+COUNTIF(O83,"<>0")+COUNTIF(O89,"<>0")+COUNTIF(O95,"<>0"),D14) -> 5 | M14: Agency Name
G15: =IF($O$111<>0,1,0) -> 0 | M15: Secretariat
M16: Agency Number | U16: Total Employees with Disabilities PFY | V16: =IF(O18<>"",O18,N18) -> 0
M17: Total Classified Employees at the Agency | U17: Total Employees with Disabilities who are Leaders PFY | V17: 0
M18: Total Classified Employees with Disabilities at the Agency | U18: Total Employees with Disabilities who are Executives PFY | V18: 0
M19: Total Classified Employees with Disabilities who are Leaders/Supervisors (2 or more direct reports) | U19: Total Veterans with Disabilities PFY | V19: 0
M20: Total Classified Employees with Disabilities at the Agency who are Executives | U20: Total Veterans with Disabilities who are Leaders PFY | V20: 0
C21: =IF(D21="",5-COUNTIF(O72:O76,""),D21) -> 0 | M21: Total Classified Veterans with Disabilities at the Agency | U21: Total Veterans with Disabilities who are Executives PFY | V21: 0
G22: =IF($O$112<>0,1,0) -> 0 | M22: Total Classified Veterans with Disabilities who are Leaders/Supervisors (2 or more direct reports)
M23: Total Classified Veterans with Disabilities at the Agency who are Executives | U23: Total Hires PFY | V23: =IF(O24<>"",O24,N24) -> 0
M24: Total Classified Hires at the Agency | U24: Total Hires with Disabilities PFY | V24: =IF(O25<>"",O25,N25) -> 0
M25: Total Classified Hires who were Employees with Disabilities | U25: Total Hires with Disabilities who are Leaders PFY | V25: =IF(O26<>"",O26,N26) -> 0
M26: Total Classified Employees with Disabilities hired to Leader/Supervisor Role (2 or more direct reports) | U26: Total Hires with Disabilities who are Executives PFY | V26: =IF(O27<>"",O27,N27) -> 0
M27: Total Classified Employees with Disabilities hired to Executive Role
M28: Total Classified Applicants to Positions at the Agency | U28: Total Applicants PFY | V28: =IF(O28<>"",O28,N28) -> 0
C29: =IF(D29="",5-COUNTIF(O78:O82,""),D29) -> 0 | M29: Total Classified Applicants who were Employees with Disabilities | U29: Total Applicants with Disabilities PFY | V29: =IF(O29<>"",O29,N29) -> 0
G30: =IF($O$113<>0,1,0) -> 0 | M30: Total Classified Employees with Disabilities that applied for a Leader/Supervisor Role (2 or more direct reports) | U30: Total Applicants with Disabilities to Leader Roles PFY | V30: =IF(O30<>"",O30,N30) -> 0
M31: Total Classified Employees with Disabilities that applied for an Executive Role | U31: Total Applicants with Disabilities to Executive Roles PFY | V31: =IF(O31<>"",O31,N31) -> 0
M32: Total Applicants that used the Alternative Hiring Process
M33: Total Individuals Hired from Alternative Hiring Process | U33: Total Applicants with Disabilities PFY | V33: =IF(O32<>"",O32,N32) -> 0
M34: Total Employees Hired through Alternative Hiring Process that transitioned to a Classified Employee | U34: Total Applicants with Disabilities who are Leaders PFY | V34: =IF(O33<>"",O33,N33) -> 0
M35: Average Years of Service at the Agency for Classified Employees | U35: Total Promotions with Disabilities who are Executives PFY | V35: =IF(O34<>"",O34,N34) -> 0
M36: Average Years of Service for Classified Employees with Disabilities
C37: =IF(D37="",5-COUNTIF(O84:O88,""),D37) -> 0 | M37: Average Years of Service for Classified Employees with Disabilities in a Leader/Supervisor Role (2 or more direct reports) | U37: Average YOS PFY | V37: =IF(O35<>"",O35,N35) -> 0
G38: =IF($O$114<>0,1,0) -> 0 | M38: Average Years of Service for Classified Employees with Disabilities in an Executive Role | U38: Average YOS Employees with Disabilities PFY | V38: =IF(O36<>"",O36,N36) -> 0
M39: Total Number of Internal Promotions of Classified Employees at the Agency | U39: Average YOS Employees with Disabiliies in Leader/Supervisor Role PFY | V39: =IF(O37<>"",O37,N37) -> 0
M40: Total Classified Internal Promotions who were Employees with Disabilities | U40: Average YOS Employees with Disbailities in Executive Roles PFY | V40: =IF(O38<>"",O38,N38) -> 0
M41: Total Classified Internal Promotions who were Employees with Disabilities to a Leader/Supervisor Role (2 or more direct reports)
M42: Total Classified Internal Promotions who were Employees with Disabilities to an Executive Role | U42: Total Promotions PFY | V42: =IF(O39<>"",O39,N39) -> 0
M43: Total Number of Internal Transfers of Classified Employees at the Agency | U43: Total Promotions with Disabilities PFY | V43: =IF(O40<>"",O40,N40) -> 0
M44: Total Classified Internal Transfers who were Employees with Disabilities | U44: Total Promotions with Disabilities who are Leaders PFY | V44: =IF(O41<>"",O41,N41) -> 0
C45: =IF(D45="",5-COUNTIF(O90:O94,""),D45) -> 0 | M45: Total Classified Internal Transfers who were Employees with Disabilities to a Leader/Supervisor Role (2 or more direct reports) | U45: Total Promotions with Disabilities who are Executives PFY | V45: =IF(O42<>"",O42,N42) -> 0
G46: =IF($O$115<>0,1,0) -> 0 | M46: Total Classified Internal Transfers who were Employees with Disabilities to an Executive Role
M47: Total Number of Voluntary Separations of Classified Employees at the Agency | U47: Total Internal Transfers PFY | V47: =IF(O43<>"",O43,N43) -> 0
M48: Total Classified Voluntary Separations who were Employees with Disabilities | U48: Total Internal Transfers with Disabilities PFY | V48: =IF(O44<>"",O44,N44) -> 0
M49: Total Classified Voluntary Separations who were Employees with Disabilities to a Leader/Supervisor Role (2 or more direct reports) | U49: Total Internal Transfers with Disabilities who are Leaders PFY | V49: =IF(O45<>"",O45,N45) -> 0
M50: Total Classified Voluntary Separations who were Employees with Disabilities to an Executive Role | U50: Total Internal Transfers with Disabilities who are Executives PFY | V50: =IF(O46<>"",O46,N46) -> 0
M51: Total Number of External Transfers of Classified Employees at the Agency
M52: Total Classified External Transfers who were Employees with Disabilities | U52: Total Separations PFY | V52: =IF(O47<>"",O47,N47) -> 0
C53: =IF(D53="",5-COUNTIF(O96:O100,""),D53) -> 0 | M53: Total Classified External Transfers who were Employees with Disabilities to a Leader/Supervisor Role (2 or more direct reports) | U53: Total Separations with Disabilities PFY | V53: =IF(O48<>"",O48,N48) -> 0
M54: Total Classified External Transfers who were Employees with Disabilities to an Executive Role | U54: Total Separations with Disabilities who are Leaders PFY | V54: =IF(O49<>"",O49,N49) -> 0
M55: Recruitment Stregnths | U55: Total Separations with Disabilities who are Executives PFY | V55: =IF(O50<>"",O50,N50) -> 0
M56: Retention Strengths
M57: Engagement Strengths | U57: Total Transfers PFY | V57: =IF(O51<>"",O51,N51) -> 0
M58: Learning/Development Strengths | U58: Total Transfers with Disabilities PFY | V58: =IF(O52<>"",O52,N52) -> 0
M59: Recruitment Weaknesses | U59: Total Transfers with Disabilities who are Leaders PFY | V59: =IF(O53<>"",O53,N53) -> 0
M60: Retention Weaknesses | U60: Total Transfers with Disabilities who are Executives PFY | V60: =IF(O54<>"",O54,N54) -> 0
M61: Engagement Weaknesses
M62: Learning/Development Weaknesses | U62: Recruitment Stregnths | V62: =IF(O55<>0,O55,N55) -> 0 | W62: =IF(V62=0,"",V62) -> 
M63: Recruitment Opportunities | U63: Retention Strengths | V63: =IF(O56<>"",O56,N56) -> 0 | W63: =IF(V63=0,"",V63) -> 
M64: Retention Opportunities | U64: Engagement Strengths | V64: 0
M65: Engagement Opportunities | U65: Learning/Development Strengths | V65: 0
M66: Learning/Development Opportunities | U66: Recruitment Weaknesses | V66: 0
M67: Recruitment Threats | U67: Retention Weaknesses | V67: 0
M68: Retention Threats | U68: Engagement Weaknesses | V68: 0
M69: Engagement Threats | U69: Learning/Development Weaknesses | V69: 0
M70: Learning/Development Threats | U70: Recruitment Opportunities | V70: 0
M71: Objective 1 | U71: Retention Opportunities | V71: 0
M72: Objective 1 Action 1 | U72: Engagement Opportunities | V72: 0
M73: Objective 1 Action 2 | U73: Learning/Development Opportunities | V73: 0
M74: Objective 1 Action 3 | U74: Recruitment Threats | V74: 0
M75: Objective 1 Action 4 | U75: Retention Threats | V75: 0
M76: Objective 1 Action 5 | U76: Engagement Threats | V76: 0
M77: Objective 2 | U77: Learning/Development Threats | V77: 0
M78: Objective 2 Action 1 | U78: Objective 1 | V78: 0
M79: Objective 2 Action 2 | U79: Objective 1 Action 1 | V79: 0
M80: Objective 2 Action 3 | U80: Objective 1 Action 2 | V80: 0
M81: Objective 2 Action 4 | U81: Objective 1 Action 3 | V81: 0
M82: Objective 2 Action 5 | U82: Objective 1 Action 4 | V82: 0
M83: Objective 3 | U83: Objective 1 Action 5 | V83: 0
M84: Objective 3 Action 1 | U84: Objective 2 | V84: 0
M85: Objective 3 Action 2 | U85: Objective 2 Action 1 | V85: 0
M86: Objective 3 Action 3 | U86: Objective 2 Action 2 | V86: 0
M87: Objective 3 Action 4 | U87: Objective 2 Action 3 | V87: 0
M88: Objective 3 Action 5 | U88: Objective 2 Action 4 | V88: 0
M89: Objective 4 | U89: Objective 2 Action 5 | V89: 0
M90: Objective 4 Action 1 | U90: Objective 3 | V90: 0
M91: Objective 4 Action 2 | U91: Objective 3 Action 1 | V91: 0
M92: Objective 4 Action 3 | U92: Objective 3 Action 2 | V92: 0
M93: Objective 4 Action 4 | U93: Objective 3 Action 3 | V93: 0
M94: Objective 4 Action 5 | U94: Objective 3 Action 4 | V94: 0
M95: Objective 5 | U95: Objective 3 Action 5 | V95: =IF(O88<>"",O88,N88) -> 0
M96: Objective 5 Action 1 | U96: Objective 4 | V96: 0
M97: Objective 5 Action 2 | U97: Objective 4 Action 1 | V97: 0
M98: Objective 5 Action 3 | U98: Objective 4 Action 2 | V98: 0
M99: Objective 5 Action 4 | U99: Objective 4 Action 3 | V99: 0
M100: Objective 5 Action 5 | U100: Objective 4 Action 4 | V100: 0
M101: Executive Summary | U101: Objective 4 Action 5 | V101: 0
M102: Red Scale | U102: Objective 5 | V102: 0
M103: Yellow Scale | U103: Objective 5 Action 1 | V103: 0
M104: Green Scale | U104: Objective 5 Action 2 | V104: 0
M105: SWOT Included in Report | U105: Objective 5 Action 3 | V105: 0
M106: SWOT Summary | U106: Objective 5 Action 4 | V106: 0
M107: Strength Summary | U107: Objective 5 Action 5 | V107: 0
M108: Weaknesses Summary | U108: Executive Summary | V108: 0
M109: Opportunities Summary | U109: Red Scale | V109: 0
M110: Threats Summary | U110: Yellow Scale | V110: 0
M111: Objective 1 Progress Summary | U111: Green Scale | V111: 0
M112: Objective 2 Progress Summary | U112: SWOT Included in Report | V112: 0
M113: Objective 3 Progress Summary | U113: SWOT Summary | V113: 0
M114: Objective 4 Progress Summary | U114: Strength Summary | V114: 0
M115: Objective 5 Progress Summary | U115: Weaknesses Summary | V115: 0
U116: Opportunities Summary | V116: 0
U117: Threats Summary | V117: 0
U118: Objective 1 Progress Summary | V118: 0
U119: Objective 2 Progress Summary | V119: 0
U120: Objective 3 Progress Summary | V120: 0
U121: Objective 4 Progress Summary | V121: 0
U122: Objective 5 Progress Summary | V122: 0

Sheet DATA EXPORT (hidden)
C6: DHRM EXPORT
C9: The DHRM Export Tab complies information in this template to be imported into other tools.
M13: Fiscal Year | N13: ='DHRM ADMIN'!$P$15-2 -> 1898 | O13: ='DHRM ADMIN'!$P$15-1 -> 1899 | P13: ='DHRM ADMIN'!$P$15 -> 1900
M14: Agency Name | N14: ='AGENCY PROFILE'!$J$29 -> 0 | O14: ='AGENCY PROFILE'!$J$29 -> 0 | P14: ='AGENCY PROFILE'!$J$29 -> 0
M15: Secretariat | N15: ='AGENCY PROFILE'!$J$30 ->  | O15: ='AGENCY PROFILE'!$J$30 ->  | P15: ='AGENCY PROFILE'!$J$30 -> 
M16: Agency Number | N16: ='AGENCY PROFILE'!$P$31 ->  | O16: ='AGENCY PROFILE'!$P$31 ->  | P16: ='AGENCY PROFILE'!$P$31 -> 
M17: Total Classified Employees at the Agency | N17: ='AGENCY PROFILE'!N59 -> 0 | O17: ='AGENCY PROFILE'!O59 -> 0 | P17: ='AGENCY PROFILE'!P59 -> 0
M18: Total Classified Employees with Disabilities at the Agency | N18: ='AGENCY PROFILE'!N60 -> 0 | O18: ='AGENCY PROFILE'!O60 -> 0 | P18: ='AGENCY PROFILE'!P60 -> 0
M19: Total Classified Employees with Disabilities who are Leaders/Supervisors (2 or more direct reports) | N19: ='AGENCY PROFILE'!N61 -> 0 | O19: ='AGENCY PROFILE'!O61 -> 0 | P19: ='AGENCY PROFILE'!P61 -> 0
M20: Total Classified Employees with Disabilities at the Agency who are Executives | N20: ='AGENCY PROFILE'!N62 -> 0 | O20: ='AGENCY PROFILE'!O62 -> 0 | P20: ='AGENCY PROFILE'!P62 -> 0
M21: Total Classified Veterans with Disabilities at the Agency | N21: ='AGENCY PROFILE'!N63 -> 0 | O21: ='AGENCY PROFILE'!O63 -> 0 | P21: ='AGENCY PROFILE'!P63 -> 0
M22: Total Classified Veterans with Disabilities who are Leaders/Supervisors (2 or more direct reports) | N22: ='AGENCY PROFILE'!N64 -> 0 | O22: ='AGENCY PROFILE'!O64 -> 0 | P22: ='AGENCY PROFILE'!P64 -> 0
M23: Total Classified Veterans with Disabilities at the Agency who are Executives | N23: ='AGENCY PROFILE'!N65 -> 0 | O23: ='AGENCY PROFILE'!O65 -> 0 | P23: ='AGENCY PROFILE'!P65 -> 0
M24: Total Classified Hires at the Agency | N24: ='WORKFORCE DATA'!N33 -> 0 | O24: ='WORKFORCE DATA'!O33 -> 0 | P24: ='WORKFORCE DATA'!P33 -> 0
M25: Total Classified Hires who were Employees with Disabilities | N25: ='WORKFORCE DATA'!N34 -> 0 | O25: ='WORKFORCE DATA'!O34 -> 0 | P25: ='WORKFORCE DATA'!P34 -> 0
M26: Total Classified Employees with Disabilities hired to Leader/Supervisor Role (2 or more direct reports) | N26: ='WORKFORCE DATA'!N35 -> 0 | O26: ='WORKFORCE DATA'!O35 -> 0 | P26: ='WORKFORCE DATA'!P35 -> 0
M27: Total Classified Employees with Disabilities hired to Executive Role | N27: ='WORKFORCE DATA'!N36 -> 0 | O27: ='WORKFORCE DATA'!O36 -> 0 | P27: ='WORKFORCE DATA'!P36 -> 0
M28: Total Classified Applicants to Positions at the Agency | N28: ='WORKFORCE DATA'!N41 -> 0 | O28: ='WORKFORCE DATA'!O41 -> 0 | P28: ='WORKFORCE DATA'!P41 -> 0
M29: Total Classified Applicants who were Employees with Disabilities | N29: ='WORKFORCE DATA'!N42 -> 0 | O29: ='WORKFORCE DATA'!O42 -> 0 | P29: ='WORKFORCE DATA'!P42 -> 0
M30: Total Classified Employees with Disabilities that applied for a Leader/Supervisor Role (2 or more direct reports) | N30: ='WORKFORCE DATA'!N43 -> 0 | O30: ='WORKFORCE DATA'!O43 -> 0 | P30: ='WORKFORCE DATA'!P43 -> 0
M31: Total Classified Employees with Disabilities that applied for an Executive Role | N31: ='WORKFORCE DATA'!N44 -> 0 | O31: ='WORKFORCE DATA'!O44 -> 0 | P31: ='WORKFORCE DATA'!P44 -> 0
M32: Total Applicants that used the Alternative Hiring Process | N32: ='WORKFORCE DATA'!N55 -> 0 | O32: ='WORKFORCE DATA'!O55 -> 0 | P32: ='WORKFORCE DATA'!P55 -> 0
M33: Total Individuals Hired from Alternative Hiring Process | N33: ='WORKFORCE DATA'!N56 -> 0 | O33: ='WORKFORCE DATA'!O56 -> 0 | P33: ='WORKFORCE DATA'!P56 -> 0
M34: Total Employees Hired through Alternative Hiring Process that transitioned to a Classified Employee | N34: ='WORKFORCE DATA'!N57 -> 0 | O34: ='WORKFORCE DATA'!O57 -> 0 | P34: ='WORKFORCE DATA'!P57 -> 0
M35: Average Years of Service at the Agency for Classified Employees | N35: ='WORKFORCE DATA'!N70 -> 0 | O35: ='WORKFORCE DATA'!O70 -> 0 | P35: ='WORKFORCE DATA'!P70 -> 0
M36: Average Years of Service for Classified Employees with Disabilities | N36: ='WORKFORCE DATA'!N71 -> 0 | O36: ='WORKFORCE DATA'!O71 -> 0 | P36: ='WORKFORCE DATA'!P71 -> 0
M37: Average Years of Service for Classified Employees with Disabilities in a Leader/Supervisor Role (2 or more direct reports) | N37: ='WORKFORCE DATA'!N72 -> 0 | O37: ='WORKFORCE DATA'!O72 -> 0 | P37: ='WORKFORCE DATA'!P72 -> 0
M38: Average Years of Service for Classified Employees with Disabilities in an Executive Role | N38: ='WORKFORCE DATA'!N73 -> 0 | O38: ='WORKFORCE DATA'!O73 -> 0 | P38: ='WORKFORCE DATA'!P73 -> 0
M39: Total Number of Internal Promotions of Classified Employees at the Agency | N39: ='WORKFORCE DATA'!N78 -> 0 | O39: ='WORKFORCE DATA'!O78 -> 0 | P39: ='WORKFORCE DATA'!P78 -> 0
M40: Total Classified Internal Promotions who were Employees with Disabilities | N40: ='WORKFORCE DATA'!N79 -> 0 | O40: ='WORKFORCE DATA'!O79 -> 0 | P40: ='WORKFORCE DATA'!P79 -> 0
M41: Total Classified Internal Promotions who were Employees with Disabilities to a Leader/Supervisor Role (2 or more direct reports) | N41: ='WORKFORCE DATA'!N80 -> 0 | O41: ='WORKFORCE DATA'!O80 -> 0 | P41: ='WORKFORCE DATA'!P80 -> 0
M42: Total Classified Internal Promotions who were Employees with Disabilities to an Executive Role | N42: ='WORKFORCE DATA'!N81 -> 0 | O42: ='WORKFORCE DATA'!O81 -> 0 | P42: ='WORKFORCE DATA'!P81 -> 0
M43: Total Number of Internal Transfers of Classified Employees at the Agency | N43: ='WORKFORCE DATA'!N86 -> 0 | O43: ='WORKFORCE DATA'!O86 -> 0 | P43: ='WORKFORCE DATA'!P86 -> 0
M44: Total Classified Internal Transfers who were Employees with Disabilities | N44: ='WORKFORCE DATA'!N87 -> 0 | O44: ='WORKFORCE DATA'!O87 -> 0 | P44: ='WORKFORCE DATA'!P87 -> 0
M45: Total Classified Internal Transfers who were Employees with Disabilities to a Leader/Supervisor Role (2 or more direct reports) | N45: ='WORKFORCE DATA'!N88 -> 0 | O45: ='WORKFORCE DATA'!O88 -> 0 | P45: ='WORKFORCE DATA'!P88 -> 0
M46: Total Classified Internal Transfers who were Employees with Disabilities to an Executive Role | N46: ='WORKFORCE DATA'!N89 -> 0 | O46: ='WORKFORCE DATA'!O89 -> 0 | P46: ='WORKFORCE DATA'!P89 -> 0
M47: Total Number of Voluntary Separations of Classified Employees at the Agency | N47: ='WORKFORCE DATA'!N94 -> 0 | O47: ='WORKFORCE DATA'!O94 -> 0 | P47: ='WORKFORCE DATA'!P94 -> 0
M48: Total Classified Voluntary Separations who were Employees with Disabilities | N48: ='WORKFORCE DATA'!N95 -> 0 | O48: ='WORKFORCE DATA'!O95 -> 0 | P48: ='WORKFORCE DATA'!P95 -> 0
M49: Total Classified Voluntary Separations who were Employees with Disabilities to a Leader/Supervisor Role (2 or more direct reports) | N49: ='WORKFORCE DATA'!N96 -> 0 | O49: ='WORKFORCE DATA'!O96 -> 0 | P49: ='WORKFORCE DATA'!P96 -> 0
M50: Total Classified Voluntary Separations who were Employees with Disabilities to an Executive Role | N50: ='WORKFORCE DATA'!N97 -> 0 | O50: ='WORKFORCE DATA'!O97 -> 0 | P50: ='WORKFORCE DATA'!P97 -> 0
M51: Total Number of External Transfers of Classified Employees at the Agency | N51: ='WORKFORCE DATA'!N102 -> 0 | O51: ='WORKFORCE DATA'!O102 -> 0 | P51: ='WORKFORCE DATA'!P102 -> 0
M52: Total Classified External Transfers who were Employees with Disabilities | N52: ='WORKFORCE DATA'!N103 -> 0 | O52: ='WORKFORCE DATA'!O103 -> 0 | P52: ='WORKFORCE DATA'!P103 -> 0
M53: Total Classified External Transfers who were Employees with Disabilities to a Leader/Supervisor Role (2 or more direct reports) | N53: ='WORKFORCE DATA'!N104 -> 0 | O53: ='WORKFORCE DATA'!O104 -> 0 | P53: ='WORKFORCE DATA'!P104 -> 0
M54: Total Classified External Transfers who were Employees with Disabilities to an Executive Role | N54: ='WORKFORCE DATA'!N105 -> 0 | O54: ='WORKFORCE DATA'!O105 -> 0 | P54: ='WORKFORCE DATA'!P105 -> 0
B55: ='GETTING STARTED'!B134 -> 00:00:00 | C55: ='GETTING STARTED'!K134 -> 00:00:00 | M55: Recruitment Stregnths | P55: ='AGENCY STRATEGY'!E81 -> 0
M56: Retention Strengths | P56: ='AGENCY STRATEGY'!H81 -> 0
M57: Engagement Strengths | P57: ='AGENCY STRATEGY'!K81 -> 0
M58: Learning/Development Strengths | P58: ='AGENCY STRATEGY'!N81 -> 0
M59: Recruitment Weaknesses | P59: ='AGENCY STRATEGY'!E100 -> 0
M60: Retention Weaknesses | P60: ='AGENCY STRATEGY'!H100 -> 0
M61: Engagement Weaknesses | P61: ='AGENCY STRATEGY'!$K$100 -> 0
M62: Learning/Development Weaknesses | P62: ='AGENCY STRATEGY'!$N$100 -> 0
M63: Recruitment Opportunities | P63: ='AGENCY STRATEGY'!$E$119 -> 0
M64: Retention Opportunities | P64: ='AGENCY STRATEGY'!$H$119 -> 0
M65: Engagement Opportunities | P65: ='AGENCY STRATEGY'!$K$119 -> 0
M66: Learning/Development Opportunities | P66: ='AGENCY STRATEGY'!$N$119 -> 0
M67: Recruitment Threats | P67: ='AGENCY STRATEGY'!$E$138 -> 0
M68: Retention Threats | P68: ='AGENCY STRATEGY'!$H$138 -> 0
M69: Engagement Threats | P69: ='AGENCY STRATEGY'!$K$138 -> 0
M70: Learning/Development Threats | P70: ='AGENCY STRATEGY'!$N$138 -> 0
M71: Objective 1 | P71: ='AGENCY STRATEGY'!$F$160 -> 0
M72: Objective 1 Action 1 | P72: ='AGENCY STRATEGY'!$H$166 -> 0
M73: Objective 1 Action 2 | P73: ='AGENCY STRATEGY'!$H$169 -> 0
M74: Objective 1 Action 3 | P74: ='AGENCY STRATEGY'!$H$172 -> 0
M75: Objective 1 Action 4 | P75: ='AGENCY STRATEGY'!$H$175 -> 0
M76: Objective 1 Action 5 | P76: ='AGENCY STRATEGY'!$H$178 -> 0
M77: Objective 2 | P77: ='AGENCY STRATEGY'!$F$206 -> 0
M78: Objective 2 Action 1 | P78: ='AGENCY STRATEGY'!$H$212 -> 0
M79: Objective 2 Action 2 | P79: ='AGENCY STRATEGY'!$H$215 -> 
M80: Objective 2 Action 3 | P80: ='AGENCY STRATEGY'!$H$218 -> 
M81: Objective 2 Action 4 | P81: ='AGENCY STRATEGY'!$H$221 -> 
M82: Objective 2 Action 5 | P82: ='AGENCY STRATEGY'!$H$224 -> 
M83: Objective 3 | P83: ='AGENCY STRATEGY'!$F$252 -> 0
M84: Objective 3 Action 1 | P84: ='AGENCY STRATEGY'!$H$258 -> 0
M85: Objective 3 Action 2 | P85: ='AGENCY STRATEGY'!$H$261 -> 
M86: Objective 3 Action 3 | P86: ='AGENCY STRATEGY'!$H$264 -> 
M87: Objective 3 Action 4 | P87: ='AGENCY STRATEGY'!$H$267 -> 
M88: Objective 3 Action 5 | P88: ='AGENCY STRATEGY'!$H$270 -> 
M89: Objective 4 | P89: ='AGENCY STRATEGY'!$F$298 -> 0
M90: Objective 4 Action 1 | P90: ='AGENCY STRATEGY'!$H$304 -> 0
M91: Objective 4 Action 2 | P91: ='AGENCY STRATEGY'!$H$307 -> 
M92: Objective 4 Action 3 | P92: ='AGENCY STRATEGY'!$H$310 -> 
M93: Objective 4 Action 4 | P93: ='AGENCY STRATEGY'!$H$313 -> 
M94: Objective 4 Action 5 | P94: ='AGENCY STRATEGY'!$H$316 -> 
M95: Objective 5 | P95: ='AGENCY STRATEGY'!$F$344 -> 0
M96: Objective 5 Action 1 | P96: ='AGENCY STRATEGY'!$H$350 -> 0
M97: Objective 5 Action 2 | P97: ='AGENCY STRATEGY'!$H$353 -> 
M98: Objective 5 Action 3 | P98: ='AGENCY STRATEGY'!$H$356 -> 
M99: Objective 5 Action 4 | P99: ='AGENCY STRATEGY'!$H$359 -> 
M100: Objective 5 Action 5 | P100: ='AGENCY STRATEGY'!$H$362 -> 
M101: Executive Summary | P101: =' EOP SUMMARY'!F45 -> 0
M102: Red Scale | P102: =' EOP SUMMARY'!C62 -> 0.035
M103: Yellow Scale | P103: =' EOP SUMMARY'!C66 -> 0.05
M104: Green Scale | P104: =' EOP SUMMARY'!C70 -> 0.05
M105: SWOT Included in Report | P105: =' EOP SUMMARY'!C93 -> Yes
M106: SWOT Summary | P106: =' EOP SUMMARY'!F100 -> 0
M107: Strength Summary | P107: =' EOP SUMMARY'!F110 -> 0
M108: Weaknesses Summary | P108: =' EOP SUMMARY'!M110 -> 0
M109: Opportunities Summary | P109: =' EOP SUMMARY'!F147 -> 0
M110: Threats Summary | P110: =' EOP SUMMARY'!M147 -> 0
M111: Objective 1 Progress Summary | P111: ='AGENCY STRATEGY'!H190 -> 0
M112: Objective 2 Progress Summary | P112: ='AGENCY STRATEGY'!H236 -> 0
M113: Objective 3 Progress Summary | P113: ='AGENCY STRATEGY'!H282 -> 0
M114: Objective 4 Progress Summary | P114: ='AGENCY STRATEGY'!H328 -> 0
M115: Objective 5 Progress Summary | P115: ='AGENCY STRATEGY'!H374 -> 0
M116: Objective 1 Progress Date | P116: =IF('AGENCY STRATEGY'!H189="","",'AGENCY STRATEGY'!H189) -> 
M117: Objective 2 Progress Date | P117: =IF('AGENCY STRATEGY'!H235="","",'AGENCY STRATEGY'!H235) -> 
M118: Objective 3 Progress Date | P118: =IF('AGENCY STRATEGY'!H281="","",'AGENCY STRATEGY'!H281) -> 
M119: Objective 4 Progress Date | P119: =IF('AGENCY STRATEGY'!H327="","",'AGENCY STRATEGY'!H327) -> 
M120: Objective 5 Progress Date | P120: =IF('AGENCY STRATEGY'!H373="","",'AGENCY STRATEGY'!H373) -> 
